{"text_format":"3","workbook":"xlsx","n_sheets":12,"sheets":["ינו","פבר","מרץ","אפר","מאי","יונ","יול","אוג","ספט","אוק","נוב","דצמ"],"not_rendered":{"defined_names":40},"read":"whole","date_system":"1900"}

{"sheet":"ינו","index":0,"n_rows":20,"n_cols":9,"rows_kept":20,"merged":[[16,2,17,2],[16,3,17,3],[17,4,19,8]]}
[null,"ינו","יום א",{"$f":"UPPER(TEXT(D3,\"aaa\"))","v":"יום ב"},"יום ג","יום ד","יום ה","יום ו","שבת"]
[null,{"$f":"YEAR(TODAY())","v":2018}]
[null,null,{"$f":"DaysAndWeeks+DATE(CalendarYear,1,1)-WEEKDAY(DATE(CalendarYear,1,1),(WeekStart=\"יום ב\")+1)+1","v":"2017-12-31"},"2018-01-01","2018-01-02","2018-01-03","2018-01-04","2018-01-05","2018-01-06"]
[null,null,{"$f":"IF(DAY(CalendarDay)=1,CONCATENATE(\"שבוע \",WEEKNUM(CalendarDay),\"/יום \",CalendarDay-DATE(YEAR(CalendarDay),1,0)),CONCATENATE(\"יום \",CalendarDay-DATE(YEAR(CalendarDay),1,0)))","v":"יום 365"},"שבוע 1/יום 1","יום 2","יום 3","יום 4","יום 5","יום 6"]
[]
[null,null,{"$f":"DaysAndWeeks+DATE(CalendarYear,1,1)-WEEKDAY(DATE(CalendarYear,1,1),(WeekStart=\"יום ב\")+1)+8","v":"2018-01-07"},"2018-01-08","2018-01-09","2018-01-10","2018-01-11","2018-01-12","2018-01-13"]
[null,null,{"$f":"IF(WEEKDAY(CalendarDay)=WeekStartValue,CONCATENATE(\"שבוע \",WEEKNUM(CalendarDay),\"/יום \",CalendarDay-DATE(YEAR(CalendarDay),1,0)),CONCATENATE(\"יום \",CalendarDay-DATE(YEAR(CalendarDay),1,0)))","v":"שבוע 2/יום 7"},{"$f":"IF(WEEKDAY(CalendarDay)=WeekStartValue,CONCATENATE(\"שבוע \",WEEKNUM(CalendarDay),\"/יום \",CalendarDay-DATE(YEAR(CalendarDay),1,0)),CONCATENATE(\"יום \",CalendarDay-DATE(YEAR(CalendarDay),1,0)))","v":"יום 8"},{"$f":"IF(WEEKDAY(CalendarDay)=WeekStartValue,CONCATENATE(\"שבוע \",WEEKNUM(CalendarDay),\"/יום \",CalendarDay-DATE(YEAR(CalendarDay),1,0)),CONCATENATE(\"יום \",CalendarDay-DATE(YEAR(CalendarDay),1,0)))","v":"יום 9"},{"$f":"IF(WEEKDAY(CalendarDay)=WeekStartValue,CONCATENATE(\"שבוע \",WEEKNUM(CalendarDay),\"/יום \",CalendarDay-DATE(YEAR(CalendarDay),1,0)),CONCATENATE(\"יום \",CalendarDay-DATE(YEAR(CalendarDay),1,0)))","v":"יום 10"},{"$f":"IF(WEEKDAY(CalendarDay)=WeekStartValue,CONCATENATE(\"שבוע \",WEEKNUM(CalendarDay),\"/יום \",CalendarDay-DATE(YEAR(CalendarDay),1,0)),CONCATENATE(\"יום \",CalendarDay-DATE(YEAR(CalendarDay),1,0)))","v":"יום 11"},{"$f":"IF(WEEKDAY(CalendarDay)=WeekStartValue,CONCATENATE(\"שבוע \",WEEKNUM(CalendarDay),\"/יום \",CalendarDay-DATE(YEAR(CalendarDay),1,0)),CONCATENATE(\"יום \",CalendarDay-DATE(YEAR(CalendarDay),1,0)))","v":"יום 12"},{"$f":"IF(WEEKDAY(CalendarDay)=WeekStartValue,CONCATENATE(\"שבוע \",WEEKNUM(CalendarDay),\"/יום \",CalendarDay-DATE(YEAR(CalendarDay),1,0)),CONCATENATE(\"יום \",CalendarDay-DATE(YEAR(CalendarDay),1,0)))","v":"יום 13"}]
[]
[null,null,{"$f":"DaysAndWeeks+DATE(CalendarYear,1,1)-WEEKDAY(DATE(CalendarYear,1,1),(WeekStart=\"יום ב\")+1)+15","v":"2018-01-14"},"2018-01-15","2018-01-16","2018-01-17","2018-01-18","2018-01-19","2018-01-20"]
[null,null,{"$f":"IF(WEEKDAY(CalendarDay)=WeekStartValue,CONCATENATE(\"שבוע \",WEEKNUM(CalendarDay),\"/יום \",CalendarDay-DATE(YEAR(CalendarDay),1,0)),CONCATENATE(\"יום \",CalendarDay-DATE(YEAR(CalendarDay),1,0)))","v":"שבוע 3/יום 14"},{"$f":"IF(WEEKDAY(CalendarDay)=WeekStartValue,CONCATENATE(\"שבוע \",WEEKNUM(CalendarDay),\"/יום \",CalendarDay-DATE(YEAR(CalendarDay),1,0)),CONCATENATE(\"יום \",CalendarDay-DATE(YEAR(CalendarDay),1,0)))","v":"יום 15"},{"$f":"IF(WEEKDAY(CalendarDay)=WeekStartValue,CONCATENATE(\"שבוע \",WEEKNUM(CalendarDay),\"/יום \",CalendarDay-DATE(YEAR(CalendarDay),1,0)),CONCATENATE(\"יום \",CalendarDay-DATE(YEAR(CalendarDay),1,0)))","v":"יום 16"},{"$f":"IF(WEEKDAY(CalendarDay)=WeekStartValue,CONCATENATE(\"שבוע \",WEEKNUM(CalendarDay),\"/יום \",CalendarDay-DATE(YEAR(CalendarDay),1,0)),CONCATENATE(\"יום \",CalendarDay-DATE(YEAR(CalendarDay),1,0)))","v":"יום 17"},{"$f":"IF(WEEKDAY(CalendarDay)=WeekStartValue,CONCATENATE(\"שבוע \",WEEKNUM(CalendarDay),\"/יום \",CalendarDay-DATE(YEAR(CalendarDay),1,0)),CONCATENATE(\"יום \",CalendarDay-DATE(YEAR(CalendarDay),1,0)))","v":"יום 18"},{"$f":"IF(WEEKDAY(CalendarDay)=WeekStartValue,CONCATENATE(\"שבוע \",WEEKNUM(CalendarDay),\"/יום \",CalendarDay-DATE(YEAR(CalendarDay),1,0)),CONCATENATE(\"יום \",CalendarDay-DATE(YEAR(CalendarDay),1,0)))","v":"יום 19"},{"$f":"IF(WEEKDAY(CalendarDay)=WeekStartValue,CONCATENATE(\"שבוע \",WEEKNUM(CalendarDay),\"/יום \",CalendarDay-DATE(YEAR(CalendarDay),1,0)),CONCATENATE(\"יום \",CalendarDay-DATE(YEAR(CalendarDay),1,0)))","v":"יום 20"}]
[]
[null,null,{"$f":"DaysAndWeeks+DATE(CalendarYear,1,1)-WEEKDAY(DATE(CalendarYear,1,1),(WeekStart=\"יום ב\")+1)+22","v":"2018-01-21"},"2018-01-22","2018-01-23","2018-01-24","2018-01-25","2018-01-26","2018-01-27"]
[null,null,{"$f":"IF(WEEKDAY(CalendarDay)=WeekStartValue,CONCATENATE(\"שבוע \",WEEKNUM(CalendarDay),\"/יום \",CalendarDay-DATE(YEAR(CalendarDay),1,0)),CONCATENATE(\"יום \",CalendarDay-DATE(YEAR(CalendarDay),1,0)))","v":"שבוע 4/יום 21"},{"$f":"IF(WEEKDAY(CalendarDay)=WeekStartValue,CONCATENATE(\"שבוע \",WEEKNUM(CalendarDay),\"/יום \",CalendarDay-DATE(YEAR(CalendarDay),1,0)),CONCATENATE(\"יום \",CalendarDay-DATE(YEAR(CalendarDay),1,0)))","v":"יום 22"},{"$f":"IF(WEEKDAY(CalendarDay)=WeekStartValue,CONCATENATE(\"שבוע \",WEEKNUM(CalendarDay),\"/יום \",CalendarDay-DATE(YEAR(CalendarDay),1,0)),CONCATENATE(\"יום \",CalendarDay-DATE(YEAR(CalendarDay),1,0)))","v":"יום 23"},{"$f":"IF(WEEKDAY(CalendarDay)=WeekStartValue,CONCATENATE(\"שבוע \",WEEKNUM(CalendarDay),\"/יום \",CalendarDay-DATE(YEAR(CalendarDay),1,0)),CONCATENATE(\"יום \",CalendarDay-DATE(YEAR(CalendarDay),1,0)))","v":"יום 24"},{"$f":"IF(WEEKDAY(CalendarDay)=WeekStartValue,CONCATENATE(\"שבוע \",WEEKNUM(CalendarDay),\"/יום \",CalendarDay-DATE(YEAR(CalendarDay),1,0)),CONCATENATE(\"יום \",CalendarDay-DATE(YEAR(CalendarDay),1,0)))","v":"יום 25"},{"$f":"IF(WEEKDAY(CalendarDay)=WeekStartValue,CONCATENATE(\"שבוע \",WEEKNUM(CalendarDay),\"/יום \",CalendarDay-DATE(YEAR(CalendarDay),1,0)),CONCATENATE(\"יום \",CalendarDay-DATE(YEAR(CalendarDay),1,0)))","v":"יום 26"},{"$f":"IF(WEEKDAY(CalendarDay)=WeekStartValue,CONCATENATE(\"שבוע \",WEEKNUM(CalendarDay),\"/יום \",CalendarDay-DATE(YEAR(CalendarDay),1,0)),CONCATENATE(\"יום \",CalendarDay-DATE(YEAR(CalendarDay),1,0)))","v":"יום 27"}]
[]
[null,null,{"$f":"DaysAndWeeks+DATE(CalendarYear,1,1)-WEEKDAY(DATE(CalendarYear,1,1),(WeekStart=\"יום ב\")+1)+29","v":"2018-01-28"},"2018-01-29","2018-01-30","2018-01-31","2018-02-01","2018-02-02","2018-02-03"]
[null,null,{"$f":"IF(WEEKDAY(CalendarDay)=WeekStartValue,CONCATENATE(\"שבוע \",WEEKNUM(CalendarDay),\"/יום \",CalendarDay-DATE(YEAR(CalendarDay),1,0)),CONCATENATE(\"יום \",CalendarDay-DATE(YEAR(CalendarDay),1,0)))","v":"שבוע 5/יום 28"},{"$f":"IF(WEEKDAY(CalendarDay)=WeekStartValue,CONCATENATE(\"שבוע \",WEEKNUM(CalendarDay),\"/יום \",CalendarDay-DATE(YEAR(CalendarDay),1,0)),CONCATENATE(\"יום \",CalendarDay-DATE(YEAR(CalendarDay),1,0)))","v":"יום 29"},{"$f":"IF(WEEKDAY(CalendarDay)=WeekStartValue,CONCATENATE(\"שבוע \",WEEKNUM(CalendarDay),\"/יום \",CalendarDay-DATE(YEAR(CalendarDay),1,0)),CONCATENATE(\"יום \",CalendarDay-DATE(YEAR(CalendarDay),1,0)))","v":"יום 30"},{"$f":"IF(WEEKDAY(CalendarDay)=WeekStartValue,CONCATENATE(\"שבוע \",WEEKNUM(CalendarDay),\"/יום \",CalendarDay-DATE(YEAR(CalendarDay),1,0)),CONCATENATE(\"יום \",CalendarDay-DATE(YEAR(CalendarDay),1,0)))","v":"יום 31"},{"$f":"IF(WEEKDAY(CalendarDay)=WeekStartValue,CONCATENATE(\"שבוע \",WEEKNUM(CalendarDay),\"/יום \",CalendarDay-DATE(YEAR(CalendarDay),1,0)),CONCATENATE(\"יום \",CalendarDay-DATE(YEAR(CalendarDay),1,0)))","v":"יום 32"},{"$f":"IF(WEEKDAY(CalendarDay)=WeekStartValue,CONCATENATE(\"שבוע \",WEEKNUM(CalendarDay),\"/יום \",CalendarDay-DATE(YEAR(CalendarDay),1,0)),CONCATENATE(\"יום \",CalendarDay-DATE(YEAR(CalendarDay),1,0)))","v":"יום 33"},{"$f":"IF(WEEKDAY(CalendarDay)=WeekStartValue,CONCATENATE(\"שבוע \",WEEKNUM(CalendarDay),\"/יום \",CalendarDay-DATE(YEAR(CalendarDay),1,0)),CONCATENATE(\"יום \",CalendarDay-DATE(YEAR(CalendarDay),1,0)))","v":"יום 34"}]
[{"$nulls":4},"הערות"]
[]
[null,null,{"$f":"DaysAndWeeks+DATE(CalendarYear,1,1)-WEEKDAY(DATE(CalendarYear,1,1),(WeekStart=\"יום ב\")+1)+36","v":"2018-02-04"},"2018-02-05"]
[null,null,{"$f":"IF(WEEKDAY(CalendarDay)=WeekStartValue,CONCATENATE(\"שבוע \",WEEKNUM(CalendarDay),\"/יום \",CalendarDay-DATE(YEAR(CalendarDay),1,0)),CONCATENATE(\"יום \",CalendarDay-DATE(YEAR(CalendarDay),1,0)))","v":"שבוע 6/יום 35"},{"$f":"IF(WEEKDAY(CalendarDay)=WeekStartValue,CONCATENATE(\"שבוע \",WEEKNUM(CalendarDay),\"/יום \",CalendarDay-DATE(YEAR(CalendarDay),1,0)),CONCATENATE(\"יום \",CalendarDay-DATE(YEAR(CalendarDay),1,0)))","v":"יום 36"}]

{"sheet":"פבר","index":1,"n_rows":20,"n_cols":9,"rows_kept":20,"merged":[[16,2,17,2],[17,4,19,8]]}
[null,"פבר",{"$f":"UPPER(TEXT(WeekStart,\"ddd\"))","v":"יום א"},{"$f":"UPPER(TEXT(D3,\"aaa\"))","v":"יום ב"},"יום ג","יום ד","יום ה","יום ו","שבת"]
[null,{"$f":"CalendarYear","v":2018}]
[null,null,{"$f":"DaysAndWeeks+DATE(CalendarYear,2,1)-WEEKDAY(DATE(CalendarYear,2,1),(WeekStart=\"יום ב\")+1)+1","v":"2018-01-28"},"2018-01-29","2018-01-30","2018-01-31","2018-02-01","2018-02-02","2018-02-03"]
[null,null,{"$f":"IF(DAY(CalendarDay)=1,CONCATENATE(\"שבוע \",WEEKNUM(CalendarDay),\"/יום \",CalendarDay-DATE(YEAR(CalendarDay),1,0)),CONCATENATE(\"יום \",CalendarDay-DATE(YEAR(CalendarDay),1,0)))","v":"יום 28"},"יום 29","יום 30","יום 31","שבוע 5/יום 32","יום 33","יום 34"]
[]
[null,null,{"$f":"DaysAndWeeks+DATE(CalendarYear,2,1)-WEEKDAY(DATE(CalendarYear,2,1),(WeekStart=\"יום ב\")+1)+8","v":"2018-02-04"},"2018-02-05","2018-02-06","2018-02-07","2018-02-08","2018-02-09","2018-02-10"]
[null,null,{"$f":"IF(WEEKDAY(CalendarDay)=WeekStartValue,CONCATENATE(\"שבוע \",WEEKNUM(CalendarDay),\"/יום \",CalendarDay-DATE(YEAR(CalendarDay),1,0)),CONCATENATE(\"יום \",CalendarDay-DATE(YEAR(CalendarDay),1,0)))","v":"שבוע 6/יום 35"},{"$f":"IF(WEEKDAY(CalendarDay)=WeekStartValue,CONCATENATE(\"שבוע \",WEEKNUM(CalendarDay),\"/יום \",CalendarDay-DATE(YEAR(CalendarDay),1,0)),CONCATENATE(\"יום \",CalendarDay-DATE(YEAR(CalendarDay),1,0)))","v":"יום 36"},{"$f":"IF(WEEKDAY(CalendarDay)=WeekStartValue,CONCATENATE(\"שבוע \",WEEKNUM(CalendarDay),\"/יום \",CalendarDay-DATE(YEAR(CalendarDay),1,0)),CONCATENATE(\"יום \",CalendarDay-DATE(YEAR(CalendarDay),1,0)))","v":"יום 37"},{"$f":"IF(WEEKDAY(CalendarDay)=WeekStartValue,CONCATENATE(\"שבוע \",WEEKNUM(CalendarDay),\"/יום \",CalendarDay-DATE(YEAR(CalendarDay),1,0)),CONCATENATE(\"יום \",CalendarDay-DATE(YEAR(CalendarDay),1,0)))","v":"יום 38"},{"$f":"IF(WEEKDAY(CalendarDay)=WeekStartValue,CONCATENATE(\"שבוע \",WEEKNUM(CalendarDay),\"/יום \",CalendarDay-DATE(YEAR(CalendarDay),1,0)),CONCATENATE(\"יום \",CalendarDay-DATE(YEAR(CalendarDay),1,0)))","v":"יום 39"},{"$f":"IF(WEEKDAY(CalendarDay)=WeekStartValue,CONCATENATE(\"שבוע \",WEEKNUM(CalendarDay),\"/יום \",CalendarDay-DATE(YEAR(CalendarDay),1,0)),CONCATENATE(\"יום \",CalendarDay-DATE(YEAR(CalendarDay),1,0)))","v":"יום 40"},{"$f":"IF(WEEKDAY(CalendarDay)=WeekStartValue,CONCATENATE(\"שבוע \",WEEKNUM(CalendarDay),\"/יום \",CalendarDay-DATE(YEAR(CalendarDay),1,0)),CONCATENATE(\"יום \",CalendarDay-DATE(YEAR(CalendarDay),1,0)))","v":"יום 41"}]
[]
[null,null,{"$f":"DaysAndWeeks+DATE(CalendarYear,2,1)-WEEKDAY(DATE(CalendarYear,2,1),(WeekStart=\"יום ב\")+1)+15","v":"2018-02-11"},"2018-02-12","2018-02-13","2018-02-14","2018-02-15","2018-02-16","2018-02-17"]
[null,null,{"$f":"IF(WEEKDAY(CalendarDay)=WeekStartValue,CONCATENATE(\"שבוע \",WEEKNUM(CalendarDay),\"/יום \",CalendarDay-DATE(YEAR(CalendarDay),1,0)),CONCATENATE(\"יום \",CalendarDay-DATE(YEAR(CalendarDay),1,0)))","v":"שבוע 7/יום 42"},{"$f":"IF(WEEKDAY(CalendarDay)=WeekStartValue,CONCATENATE(\"שבוע \",WEEKNUM(CalendarDay),\"/יום \",CalendarDay-DATE(YEAR(CalendarDay),1,0)),CONCATENATE(\"יום \",CalendarDay-DATE(YEAR(CalendarDay),1,0)))","v":"יום 43"},{"$f":"IF(WEEKDAY(CalendarDay)=WeekStartValue,CONCATENATE(\"שבוע \",WEEKNUM(CalendarDay),\"/יום \",CalendarDay-DATE(YEAR(CalendarDay),1,0)),CONCATENATE(\"יום \",CalendarDay-DATE(YEAR(CalendarDay),1,0)))","v":"יום 44"},{"$f":"IF(WEEKDAY(CalendarDay)=WeekStartValue,CONCATENATE(\"שבוע \",WEEKNUM(CalendarDay),\"/יום \",CalendarDay-DATE(YEAR(CalendarDay),1,0)),CONCATENATE(\"יום \",CalendarDay-DATE(YEAR(CalendarDay),1,0)))","v":"יום 45"},{"$f":"IF(WEEKDAY(CalendarDay)=WeekStartValue,CONCATENATE(\"שבוע \",WEEKNUM(CalendarDay),\"/יום \",CalendarDay-DATE(YEAR(CalendarDay),1,0)),CONCATENATE(\"יום \",CalendarDay-DATE(YEAR(CalendarDay),1,0)))","v":"יום 46"},{"$f":"IF(WEEKDAY(CalendarDay)=WeekStartValue,CONCATENATE(\"שבוע \",WEEKNUM(CalendarDay),\"/יום \",CalendarDay-DATE(YEAR(CalendarDay),1,0)),CONCATENATE(\"יום \",CalendarDay-DATE(YEAR(CalendarDay),1,0)))","v":"יום 47"},{"$f":"IF(WEEKDAY(CalendarDay)=WeekStartValue,CONCATENATE(\"שבוע \",WEEKNUM(CalendarDay),\"/יום \",CalendarDay-DATE(YEAR(CalendarDay),1,0)),CONCATENATE(\"יום \",CalendarDay-DATE(YEAR(CalendarDay),1,0)))","v":"יום 48"}]
[]
[null,null,{"$f":"DaysAndWeeks+DATE(CalendarYear,2,1)-WEEKDAY(DATE(CalendarYear,2,1),(WeekStart=\"יום ב\")+1)+22","v":"2018-02-18"},"2018-02-19","2018-02-20","2018-02-21","2018-02-22","2018-02-23","2018-02-24"]
[null,null,{"$f":"IF(WEEKDAY(CalendarDay)=WeekStartValue,CONCATENATE(\"שבוע \",WEEKNUM(CalendarDay),\"/יום \",CalendarDay-DATE(YEAR(CalendarDay),1,0)),CONCATENATE(\"יום \",CalendarDay-DATE(YEAR(CalendarDay),1,0)))","v":"שבוע 8/יום 49"},{"$f":"IF(WEEKDAY(CalendarDay)=WeekStartValue,CONCATENATE(\"שבוע \",WEEKNUM(CalendarDay),\"/יום \",CalendarDay-DATE(YEAR(CalendarDay),1,0)),CONCATENATE(\"יום \",CalendarDay-DATE(YEAR(CalendarDay),1,0)))","v":"יום 50"},{"$f":"IF(WEEKDAY(CalendarDay)=WeekStartValue,CONCATENATE(\"שבוע \",WEEKNUM(CalendarDay),\"/יום \",CalendarDay-DATE(YEAR(CalendarDay),1,0)),CONCATENATE(\"יום \",CalendarDay-DATE(YEAR(CalendarDay),1,0)))","v":"יום 51"},{"$f":"IF(WEEKDAY(CalendarDay)=WeekStartValue,CONCATENATE(\"שבוע \",WEEKNUM(CalendarDay),\"/יום \",CalendarDay-DATE(YEAR(CalendarDay),1,0)),CONCATENATE(\"יום \",CalendarDay-DATE(YEAR(CalendarDay),1,0)))","v":"יום 52"},{"$f":"IF(WEEKDAY(CalendarDay)=WeekStartValue,CONCATENATE(\"שבוע \",WEEKNUM(CalendarDay),\"/יום \",CalendarDay-DATE(YEAR(CalendarDay),1,0)),CONCATENATE(\"יום \",CalendarDay-DATE(YEAR(CalendarDay),1,0)))","v":"יום 53"},{"$f":"IF(WEEKDAY(CalendarDay)=WeekStartValue,CONCATENATE(\"שבוע \",WEEKNUM(CalendarDay),\"/יום \",CalendarDay-DATE(YEAR(CalendarDay),1,0)),CONCATENATE(\"יום \",CalendarDay-DATE(YEAR(CalendarDay),1,0)))","v":"יום 54"},{"$f":"IF(WEEKDAY(CalendarDay)=WeekStartValue,CONCATENATE(\"שבוע \",WEEKNUM(CalendarDay),\"/יום \",CalendarDay-DATE(YEAR(CalendarDay),1,0)),CONCATENATE(\"יום \",CalendarDay-DATE(YEAR(CalendarDay),1,0)))","v":"יום 55"}]
[]
[null,null,{"$f":"DaysAndWeeks+DATE(CalendarYear,2,1)-WEEKDAY(DATE(CalendarYear,2,1),(WeekStart=\"יום ב\")+1)+29","v":"2018-02-25"},"2018-02-26","2018-02-27","2018-02-28","2018-03-01","2018-03-02","2018-03-03"]
[null,null,{"$f":"IF(WEEKDAY(CalendarDay)=WeekStartValue,CONCATENATE(\"שבוע \",WEEKNUM(CalendarDay),\"/יום \",CalendarDay-DATE(YEAR(CalendarDay),1,0)),CONCATENATE(\"יום \",CalendarDay-DATE(YEAR(CalendarDay),1,0)))","v":"שבוע 9/יום 56"},{"$f":"IF(WEEKDAY(CalendarDay)=WeekStartValue,CONCATENATE(\"שבוע \",WEEKNUM(CalendarDay),\"/יום \",CalendarDay-DATE(YEAR(CalendarDay),1,0)),CONCATENATE(\"יום \",CalendarDay-DATE(YEAR(CalendarDay),1,0)))","v":"יום 57"},{"$f":"IF(WEEKDAY(CalendarDay)=WeekStartValue,CONCATENATE(\"שבוע \",WEEKNUM(CalendarDay),\"/יום \",CalendarDay-DATE(YEAR(CalendarDay),1,0)),CONCATENATE(\"יום \",CalendarDay-DATE(YEAR(CalendarDay),1,0)))","v":"יום 58"},{"$f":"IF(WEEKDAY(CalendarDay)=WeekStartValue,CONCATENATE(\"שבוע \",WEEKNUM(CalendarDay),\"/יום \",CalendarDay-DATE(YEAR(CalendarDay),1,0)),CONCATENATE(\"יום \",CalendarDay-DATE(YEAR(CalendarDay),1,0)))","v":"יום 59"},{"$f":"IF(WEEKDAY(CalendarDay)=WeekStartValue,CONCATENATE(\"שבוע \",WEEKNUM(CalendarDay),\"/יום \",CalendarDay-DATE(YEAR(CalendarDay),1,0)),CONCATENATE(\"יום \",CalendarDay-DATE(YEAR(CalendarDay),1,0)))","v":"יום 60"},{"$f":"IF(WEEKDAY(CalendarDay)=WeekStartValue,CONCATENATE(\"שבוע \",WEEKNUM(CalendarDay),\"/יום \",CalendarDay-DATE(YEAR(CalendarDay),1,0)),CONCATENATE(\"יום \",CalendarDay-DATE(YEAR(CalendarDay),1,0)))","v":"יום 61"},{"$f":"IF(WEEKDAY(CalendarDay)=WeekStartValue,CONCATENATE(\"שבוע \",WEEKNUM(CalendarDay),\"/יום \",CalendarDay-DATE(YEAR(CalendarDay),1,0)),CONCATENATE(\"יום \",CalendarDay-DATE(YEAR(CalendarDay),1,0)))","v":"יום 62"}]
[{"$nulls":4},"הערות"]
[]
[null,null,{"$f":"DaysAndWeeks+DATE(CalendarYear,2,1)-WEEKDAY(DATE(CalendarYear,2,1),(WeekStart=\"יום ב\")+1)+36","v":"2018-03-04"},"2018-03-05"]
[null,null,{"$f":"IF(WEEKDAY(CalendarDay)=WeekStartValue,CONCATENATE(\"שבוע \",WEEKNUM(CalendarDay),\"/יום \",CalendarDay-DATE(YEAR(CalendarDay),1,0)),CONCATENATE(\"יום \",CalendarDay-DATE(YEAR(CalendarDay),1,0)))","v":"שבוע 10/יום 63"},{"$f":"IF(WEEKDAY(CalendarDay)=WeekStartValue,CONCATENATE(\"שבוע \",WEEKNUM(CalendarDay),\"/יום \",CalendarDay-DATE(YEAR(CalendarDay),1,0)),CONCATENATE(\"יום \",CalendarDay-DATE(YEAR(CalendarDay),1,0)))","v":"יום 64"}]

{"sheet":"מרץ","index":2,"n_rows":20,"n_cols":9,"rows_kept":20,"merged":[[16,2,17,2],[17,4,19,8]]}
[null,"מרץ",{"$f":"UPPER(TEXT(WeekStart,\"ddd\"))","v":"יום א"},{"$f":"UPPER(TEXT(D3,\"aaa\"))","v":"יום ב"},"יום ג","יום ד","יום ה","יום ו","שבת"]
[null,{"$f":"CalendarYear","v":2018}]
[null,null,{"$f":"DaysAndWeeks+DATE(CalendarYear,3,1)-WEEKDAY(DATE(CalendarYear,3,1),(WeekStart=\"יום ב\")+1)+1","v":"2018-02-25"},"2018-02-26","2018-02-27","2018-02-28","2018-03-01","2018-03-02","2018-03-03"]
[null,null,{"$f":"IF(DAY(CalendarDay)=1,CONCATENATE(\"שבוע \",WEEKNUM(CalendarDay),\"/יום \",CalendarDay-DATE(YEAR(CalendarDay),1,0)),CONCATENATE(\"יום \",CalendarDay-DATE(YEAR(CalendarDay),1,0)))","v":"יום 56"},"יום 57","יום 58","יום 59","שבוע 9/יום 60","יום 61","יום 62"]
[]
[null,null,{"$f":"DaysAndWeeks+DATE(CalendarYear,3,1)-WEEKDAY(DATE(CalendarYear,3,1),(WeekStart=\"יום ב\")+1)+8","v":"2018-03-04"},"2018-03-05","2018-03-06","2018-03-07","2018-03-08","2018-03-09","2018-03-10"]
[null,null,{"$f":"IF(WEEKDAY(CalendarDay)=WeekStartValue,CONCATENATE(\"שבוע \",WEEKNUM(CalendarDay),\"/יום \",CalendarDay-DATE(YEAR(CalendarDay),1,0)),CONCATENATE(\"יום \",CalendarDay-DATE(YEAR(CalendarDay),1,0)))","v":"שבוע 10/יום 63"},{"$f":"IF(WEEKDAY(CalendarDay)=WeekStartValue,CONCATENATE(\"שבוע \",WEEKNUM(CalendarDay),\"/יום \",CalendarDay-DATE(YEAR(CalendarDay),1,0)),CONCATENATE(\"יום \",CalendarDay-DATE(YEAR(CalendarDay),1,0)))","v":"יום 64"},{"$f":"IF(WEEKDAY(CalendarDay)=WeekStartValue,CONCATENATE(\"שבוע \",WEEKNUM(CalendarDay),\"/יום \",CalendarDay-DATE(YEAR(CalendarDay),1,0)),CONCATENATE(\"יום \",CalendarDay-DATE(YEAR(CalendarDay),1,0)))","v":"יום 65"},{"$f":"IF(WEEKDAY(CalendarDay)=WeekStartValue,CONCATENATE(\"שבוע \",WEEKNUM(CalendarDay),\"/יום \",CalendarDay-DATE(YEAR(CalendarDay),1,0)),CONCATENATE(\"יום \",CalendarDay-DATE(YEAR(CalendarDay),1,0)))","v":"יום 66"},{"$f":"IF(WEEKDAY(CalendarDay)=WeekStartValue,CONCATENATE(\"שבוע \",WEEKNUM(CalendarDay),\"/יום \",CalendarDay-DATE(YEAR(CalendarDay),1,0)),CONCATENATE(\"יום \",CalendarDay-DATE(YEAR(CalendarDay),1,0)))","v":"יום 67"},{"$f":"IF(WEEKDAY(CalendarDay)=WeekStartValue,CONCATENATE(\"שבוע \",WEEKNUM(CalendarDay),\"/יום \",CalendarDay-DATE(YEAR(CalendarDay),1,0)),CONCATENATE(\"יום \",CalendarDay-DATE(YEAR(CalendarDay),1,0)))","v":"יום 68"},{"$f":"IF(WEEKDAY(CalendarDay)=WeekStartValue,CONCATENATE(\"שבוע \",WEEKNUM(CalendarDay),\"/יום \",CalendarDay-DATE(YEAR(CalendarDay),1,0)),CONCATENATE(\"יום \",CalendarDay-DATE(YEAR(CalendarDay),1,0)))","v":"יום 69"}]
[]
[null,null,{"$f":"DaysAndWeeks+DATE(CalendarYear,3,1)-WEEKDAY(DATE(CalendarYear,3,1),(WeekStart=\"יום ב\")+1)+15","v":"2018-03-11"},"2018-03-12","2018-03-13","2018-03-14","2018-03-15","2018-03-16","2018-03-17"]
[null,null,{"$f":"IF(WEEKDAY(CalendarDay)=WeekStartValue,CONCATENATE(\"שבוע \",WEEKNUM(CalendarDay),\"/יום \",CalendarDay-DATE(YEAR(CalendarDay),1,0)),CONCATENATE(\"יום \",CalendarDay-DATE(YEAR(CalendarDay),1,0)))","v":"שבוע 11/יום 70"},{"$f":"IF(WEEKDAY(CalendarDay)=WeekStartValue,CONCATENATE(\"שבוע \",WEEKNUM(CalendarDay),\"/יום \",CalendarDay-DATE(YEAR(CalendarDay),1,0)),CONCATENATE(\"יום \",CalendarDay-DATE(YEAR(CalendarDay),1,0)))","v":"יום 71"},{"$f":"IF(WEEKDAY(CalendarDay)=WeekStartValue,CONCATENATE(\"שבוע \",WEEKNUM(CalendarDay),\"/יום \",CalendarDay-DATE(YEAR(CalendarDay),1,0)),CONCATENATE(\"יום \",CalendarDay-DATE(YEAR(CalendarDay),1,0)))","v":"יום 72"},{"$f":"IF(WEEKDAY(CalendarDay)=WeekStartValue,CONCATENATE(\"שבוע \",WEEKNUM(CalendarDay),\"/יום \",CalendarDay-DATE(YEAR(CalendarDay),1,0)),CONCATENATE(\"יום \",CalendarDay-DATE(YEAR(CalendarDay),1,0)))","v":"יום 73"},{"$f":"IF(WEEKDAY(CalendarDay)=WeekStartValue,CONCATENATE(\"שבוע \",WEEKNUM(CalendarDay),\"/יום \",CalendarDay-DATE(YEAR(CalendarDay),1,0)),CONCATENATE(\"יום \",CalendarDay-DATE(YEAR(CalendarDay),1,0)))","v":"יום 74"},{"$f":"IF(WEEKDAY(CalendarDay)=WeekStartValue,CONCATENATE(\"שבוע \",WEEKNUM(CalendarDay),\"/יום \",CalendarDay-DATE(YEAR(CalendarDay),1,0)),CONCATENATE(\"יום \",CalendarDay-DATE(YEAR(CalendarDay),1,0)))","v":"יום 75"},{"$f":"IF(WEEKDAY(CalendarDay)=WeekStartValue,CONCATENATE(\"שבוע \",WEEKNUM(CalendarDay),\"/יום \",CalendarDay-DATE(YEAR(CalendarDay),1,0)),CONCATENATE(\"יום \",CalendarDay-DATE(YEAR(CalendarDay),1,0)))","v":"יום 76"}]
[]
[null,null,{"$f":"DaysAndWeeks+DATE(CalendarYear,3,1)-WEEKDAY(DATE(CalendarYear,3,1),(WeekStart=\"יום ב\")+1)+22","v":"2018-03-18"},"2018-03-19","2018-03-20","2018-03-21","2018-03-22","2018-03-23","2018-03-24"]
[null,null,{"$f":"IF(WEEKDAY(CalendarDay)=WeekStartValue,CONCATENATE(\"שבוע \",WEEKNUM(CalendarDay),\"/יום \",CalendarDay-DATE(YEAR(CalendarDay),1,0)),CONCATENATE(\"יום \",CalendarDay-DATE(YEAR(CalendarDay),1,0)))","v":"שבוע 12/יום 77"},{"$f":"IF(WEEKDAY(CalendarDay)=WeekStartValue,CONCATENATE(\"שבוע \",WEEKNUM(CalendarDay),\"/יום \",CalendarDay-DATE(YEAR(CalendarDay),1,0)),CONCATENATE(\"יום \",CalendarDay-DATE(YEAR(CalendarDay),1,0)))","v":"יום 78"},{"$f":"IF(WEEKDAY(CalendarDay)=WeekStartValue,CONCATENATE(\"שבוע \",WEEKNUM(CalendarDay),\"/יום \",CalendarDay-DATE(YEAR(CalendarDay),1,0)),CONCATENATE(\"יום \",CalendarDay-DATE(YEAR(CalendarDay),1,0)))","v":"יום 79"},{"$f":"IF(WEEKDAY(CalendarDay)=WeekStartValue,CONCATENATE(\"שבוע \",WEEKNUM(CalendarDay),\"/יום \",CalendarDay-DATE(YEAR(CalendarDay),1,0)),CONCATENATE(\"יום \",CalendarDay-DATE(YEAR(CalendarDay),1,0)))","v":"יום 80"},{"$f":"IF(WEEKDAY(CalendarDay)=WeekStartValue,CONCATENATE(\"שבוע \",WEEKNUM(CalendarDay),\"/יום \",CalendarDay-DATE(YEAR(CalendarDay),1,0)),CONCATENATE(\"יום \",CalendarDay-DATE(YEAR(CalendarDay),1,0)))","v":"יום 81"},{"$f":"IF(WEEKDAY(CalendarDay)=WeekStartValue,CONCATENATE(\"שבוע \",WEEKNUM(CalendarDay),\"/יום \",CalendarDay-DATE(YEAR(CalendarDay),1,0)),CONCATENATE(\"יום \",CalendarDay-DATE(YEAR(CalendarDay),1,0)))","v":"יום 82"},{"$f":"IF(WEEKDAY(CalendarDay)=WeekStartValue,CONCATENATE(\"שבוע \",WEEKNUM(CalendarDay),\"/יום \",CalendarDay-DATE(YEAR(CalendarDay),1,0)),CONCATENATE(\"יום \",CalendarDay-DATE(YEAR(CalendarDay),1,0)))","v":"יום 83"}]
[]
[null,null,{"$f":"DaysAndWeeks+DATE(CalendarYear,3,1)-WEEKDAY(DATE(CalendarYear,3,1),(WeekStart=\"יום ב\")+1)+29","v":"2018-03-25"},"2018-03-26","2018-03-27","2018-03-28","2018-03-29","2018-03-30","2018-03-31"]
[null,null,{"$f":"IF(WEEKDAY(CalendarDay)=WeekStartValue,CONCATENATE(\"שבוע \",WEEKNUM(CalendarDay),\"/יום \",CalendarDay-DATE(YEAR(CalendarDay),1,0)),CONCATENATE(\"יום \",CalendarDay-DATE(YEAR(CalendarDay),1,0)))","v":"שבוע 13/יום 84"},{"$f":"IF(WEEKDAY(CalendarDay)=WeekStartValue,CONCATENATE(\"שבוע \",WEEKNUM(CalendarDay),\"/יום \",CalendarDay-DATE(YEAR(CalendarDay),1,0)),CONCATENATE(\"יום \",CalendarDay-DATE(YEAR(CalendarDay),1,0)))","v":"יום 85"},{"$f":"IF(WEEKDAY(CalendarDay)=WeekStartValue,CONCATENATE(\"שבוע \",WEEKNUM(CalendarDay),\"/יום \",CalendarDay-DATE(YEAR(CalendarDay),1,0)),CONCATENATE(\"יום \",CalendarDay-DATE(YEAR(CalendarDay),1,0)))","v":"יום 86"},{"$f":"IF(WEEKDAY(CalendarDay)=WeekStartValue,CONCATENATE(\"שבוע \",WEEKNUM(CalendarDay),\"/יום \",CalendarDay-DATE(YEAR(CalendarDay),1,0)),CONCATENATE(\"יום \",CalendarDay-DATE(YEAR(CalendarDay),1,0)))","v":"יום 87"},{"$f":"IF(WEEKDAY(CalendarDay)=WeekStartValue,CONCATENATE(\"שבוע \",WEEKNUM(CalendarDay),\"/יום \",CalendarDay-DATE(YEAR(CalendarDay),1,0)),CONCATENATE(\"יום \",CalendarDay-DATE(YEAR(CalendarDay),1,0)))","v":"יום 88"},{"$f":"IF(WEEKDAY(CalendarDay)=WeekStartValue,CONCATENATE(\"שבוע \",WEEKNUM(CalendarDay),\"/יום \",CalendarDay-DATE(YEAR(CalendarDay),1,0)),CONCATENATE(\"יום \",CalendarDay-DATE(YEAR(CalendarDay),1,0)))","v":"יום 89"},{"$f":"IF(WEEKDAY(CalendarDay)=WeekStartValue,CONCATENATE(\"שבוע \",WEEKNUM(CalendarDay),\"/יום \",CalendarDay-DATE(YEAR(CalendarDay),1,0)),CONCATENATE(\"יום \",CalendarDay-DATE(YEAR(CalendarDay),1,0)))","v":"יום 90"}]
[{"$nulls":4},"הערות"]
[]
[null,null,{"$f":"DaysAndWeeks+DATE(CalendarYear,3,1)-WEEKDAY(DATE(CalendarYear,3,1),(WeekStart=\"יום ב\")+1)+36","v":"2018-04-01"},"2018-04-02"]
[null,null,{"$f":"IF(WEEKDAY(CalendarDay)=WeekStartValue,CONCATENATE(\"שבוע \",WEEKNUM(CalendarDay),\"/יום \",CalendarDay-DATE(YEAR(CalendarDay),1,0)),CONCATENATE(\"יום \",CalendarDay-DATE(YEAR(CalendarDay),1,0)))","v":"שבוע 14/יום 91"},{"$f":"IF(WEEKDAY(CalendarDay)=WeekStartValue,CONCATENATE(\"שבוע \",WEEKNUM(CalendarDay),\"/יום \",CalendarDay-DATE(YEAR(CalendarDay),1,0)),CONCATENATE(\"יום \",CalendarDay-DATE(YEAR(CalendarDay),1,0)))","v":"יום 92"}]

{"sheet":"אפר","index":3,"n_rows":20,"n_cols":9,"rows_kept":20,"merged":[[16,2,17,2],[17,4,19,8]]}
[null,"אפר",{"$f":"UPPER(TEXT(WeekStart,\"ddd\"))","v":"יום א"},{"$f":"UPPER(TEXT(D3,\"aaa\"))","v":"יום ב"},"יום ג","יום ד","יום ה","יום ו","שבת"]
[null,{"$f":"CalendarYear","v":2018}]
[null,null,{"$f":"DaysAndWeeks+DATE(CalendarYear,4,1)-WEEKDAY(DATE(CalendarYear,4,1),(WeekStart=\"יום ב\")+1)+1","v":"2018-04-01"},"2018-04-02","2018-04-03","2018-04-04","2018-04-05","2018-04-06","2018-04-07"]
[null,null,{"$f":"IF(DAY(CalendarDay)=1,CONCATENATE(\"שבוע \",WEEKNUM(CalendarDay),\"/יום \",CalendarDay-DATE(YEAR(CalendarDay),1,0)),CONCATENATE(\"יום \",CalendarDay-DATE(YEAR(CalendarDay),1,0)))","v":"שבוע 14/יום 91"},"יום 92","יום 93","יום 94","יום 95","יום 96","יום 97"]
[]
[null,null,{"$f":"DaysAndWeeks+DATE(CalendarYear,4,1)-WEEKDAY(DATE(CalendarYear,4,1),(WeekStart=\"יום ב\")+1)+8","v":"2018-04-08"},"2018-04-09","2018-04-10","2018-04-11","2018-04-12","2018-04-13","2018-04-14"]
[null,null,{"$f":"IF(WEEKDAY(CalendarDay)=WeekStartValue,CONCATENATE(\"שבוע \",WEEKNUM(CalendarDay),\"/יום \",CalendarDay-DATE(YEAR(CalendarDay),1,0)),CONCATENATE(\"יום \",CalendarDay-DATE(YEAR(CalendarDay),1,0)))","v":"שבוע 15/יום 98"},{"$f":"IF(WEEKDAY(CalendarDay)=WeekStartValue,CONCATENATE(\"שבוע \",WEEKNUM(CalendarDay),\"/יום \",CalendarDay-DATE(YEAR(CalendarDay),1,0)),CONCATENATE(\"יום \",CalendarDay-DATE(YEAR(CalendarDay),1,0)))","v":"יום 99"},{"$f":"IF(WEEKDAY(CalendarDay)=WeekStartValue,CONCATENATE(\"שבוע \",WEEKNUM(CalendarDay),\"/יום \",CalendarDay-DATE(YEAR(CalendarDay),1,0)),CONCATENATE(\"יום \",CalendarDay-DATE(YEAR(CalendarDay),1,0)))","v":"יום 100"},{"$f":"IF(WEEKDAY(CalendarDay)=WeekStartValue,CONCATENATE(\"שבוע \",WEEKNUM(CalendarDay),\"/יום \",CalendarDay-DATE(YEAR(CalendarDay),1,0)),CONCATENATE(\"יום \",CalendarDay-DATE(YEAR(CalendarDay),1,0)))","v":"יום 101"},{"$f":"IF(WEEKDAY(CalendarDay)=WeekStartValue,CONCATENATE(\"שבוע \",WEEKNUM(CalendarDay),\"/יום \",CalendarDay-DATE(YEAR(CalendarDay),1,0)),CONCATENATE(\"יום \",CalendarDay-DATE(YEAR(CalendarDay),1,0)))","v":"יום 102"},{"$f":"IF(WEEKDAY(CalendarDay)=WeekStartValue,CONCATENATE(\"שבוע \",WEEKNUM(CalendarDay),\"/יום \",CalendarDay-DATE(YEAR(CalendarDay),1,0)),CONCATENATE(\"יום \",CalendarDay-DATE(YEAR(CalendarDay),1,0)))","v":"יום 103"},{"$f":"IF(WEEKDAY(CalendarDay)=WeekStartValue,CONCATENATE(\"שבוע \",WEEKNUM(CalendarDay),\"/יום \",CalendarDay-DATE(YEAR(CalendarDay),1,0)),CONCATENATE(\"יום \",CalendarDay-DATE(YEAR(CalendarDay),1,0)))","v":"יום 104"}]
[]
[null,null,{"$f":"DaysAndWeeks+DATE(CalendarYear,4,1)-WEEKDAY(DATE(CalendarYear,4,1),(WeekStart=\"יום ב\")+1)+15","v":"2018-04-15"},"2018-04-16","2018-04-17","2018-04-18","2018-04-19","2018-04-20","2018-04-21"]
[null,null,{"$f":"IF(WEEKDAY(CalendarDay)=WeekStartValue,CONCATENATE(\"שבוע \",WEEKNUM(CalendarDay),\"/יום \",CalendarDay-DATE(YEAR(CalendarDay),1,0)),CONCATENATE(\"יום \",CalendarDay-DATE(YEAR(CalendarDay),1,0)))","v":"שבוע 16/יום 105"},{"$f":"IF(WEEKDAY(CalendarDay)=WeekStartValue,CONCATENATE(\"שבוע \",WEEKNUM(CalendarDay),\"/יום \",CalendarDay-DATE(YEAR(CalendarDay),1,0)),CONCATENATE(\"יום \",CalendarDay-DATE(YEAR(CalendarDay),1,0)))","v":"יום 106"},{"$f":"IF(WEEKDAY(CalendarDay)=WeekStartValue,CONCATENATE(\"שבוע \",WEEKNUM(CalendarDay),\"/יום \",CalendarDay-DATE(YEAR(CalendarDay),1,0)),CONCATENATE(\"יום \",CalendarDay-DATE(YEAR(CalendarDay),1,0)))","v":"יום 107"},{"$f":"IF(WEEKDAY(CalendarDay)=WeekStartValue,CONCATENATE(\"שבוע \",WEEKNUM(CalendarDay),\"/יום \",CalendarDay-DATE(YEAR(CalendarDay),1,0)),CONCATENATE(\"יום \",CalendarDay-DATE(YEAR(CalendarDay),1,0)))","v":"יום 108"},{"$f":"IF(WEEKDAY(CalendarDay)=WeekStartValue,CONCATENATE(\"שבוע \",WEEKNUM(CalendarDay),\"/יום \",CalendarDay-DATE(YEAR(CalendarDay),1,0)),CONCATENATE(\"יום \",CalendarDay-DATE(YEAR(CalendarDay),1,0)))","v":"יום 109"},{"$f":"IF(WEEKDAY(CalendarDay)=WeekStartValue,CONCATENATE(\"שבוע \",WEEKNUM(CalendarDay),\"/יום \",CalendarDay-DATE(YEAR(CalendarDay),1,0)),CONCATENATE(\"יום \",CalendarDay-DATE(YEAR(CalendarDay),1,0)))","v":"יום 110"},{"$f":"IF(WEEKDAY(CalendarDay)=WeekStartValue,CONCATENATE(\"שבוע \",WEEKNUM(CalendarDay),\"/יום \",CalendarDay-DATE(YEAR(CalendarDay),1,0)),CONCATENATE(\"יום \",CalendarDay-DATE(YEAR(CalendarDay),1,0)))","v":"יום 111"}]
[]
[null,null,{"$f":"DaysAndWeeks+DATE(CalendarYear,4,1)-WEEKDAY(DATE(CalendarYear,4,1),(WeekStart=\"יום ב\")+1)+22","v":"2018-04-22"},"2018-04-23","2018-04-24","2018-04-25","2018-04-26","2018-04-27","2018-04-28"]
[null,null,{"$f":"IF(WEEKDAY(CalendarDay)=WeekStartValue,CONCATENATE(\"שבוע \",WEEKNUM(CalendarDay),\"/יום \",CalendarDay-DATE(YEAR(CalendarDay),1,0)),CONCATENATE(\"יום \",CalendarDay-DATE(YEAR(CalendarDay),1,0)))","v":"שבוע 17/יום 112"},{"$f":"IF(WEEKDAY(CalendarDay)=WeekStartValue,CONCATENATE(\"שבוע \",WEEKNUM(CalendarDay),\"/יום \",CalendarDay-DATE(YEAR(CalendarDay),1,0)),CONCATENATE(\"יום \",CalendarDay-DATE(YEAR(CalendarDay),1,0)))","v":"יום 113"},{"$f":"IF(WEEKDAY(CalendarDay)=WeekStartValue,CONCATENATE(\"שבוע \",WEEKNUM(CalendarDay),\"/יום \",CalendarDay-DATE(YEAR(CalendarDay),1,0)),CONCATENATE(\"יום \",CalendarDay-DATE(YEAR(CalendarDay),1,0)))","v":"יום 114"},{"$f":"IF(WEEKDAY(CalendarDay)=WeekStartValue,CONCATENATE(\"שבוע \",WEEKNUM(CalendarDay),\"/יום \",CalendarDay-DATE(YEAR(CalendarDay),1,0)),CONCATENATE(\"יום \",CalendarDay-DATE(YEAR(CalendarDay),1,0)))","v":"יום 115"},{"$f":"IF(WEEKDAY(CalendarDay)=WeekStartValue,CONCATENATE(\"שבוע \",WEEKNUM(CalendarDay),\"/יום \",CalendarDay-DATE(YEAR(CalendarDay),1,0)),CONCATENATE(\"יום \",CalendarDay-DATE(YEAR(CalendarDay),1,0)))","v":"יום 116"},{"$f":"IF(WEEKDAY(CalendarDay)=WeekStartValue,CONCATENATE(\"שבוע \",WEEKNUM(CalendarDay),\"/יום \",CalendarDay-DATE(YEAR(CalendarDay),1,0)),CONCATENATE(\"יום \",CalendarDay-DATE(YEAR(CalendarDay),1,0)))","v":"יום 117"},{"$f":"IF(WEEKDAY(CalendarDay)=WeekStartValue,CONCATENATE(\"שבוע \",WEEKNUM(CalendarDay),\"/יום \",CalendarDay-DATE(YEAR(CalendarDay),1,0)),CONCATENATE(\"יום \",CalendarDay-DATE(YEAR(CalendarDay),1,0)))","v":"יום 118"}]
[]
[null,null,{"$f":"DaysAndWeeks+DATE(CalendarYear,4,1)-WEEKDAY(DATE(CalendarYear,4,1),(WeekStart=\"יום ב\")+1)+29","v":"2018-04-29"},"2018-04-30","2018-05-01","2018-05-02","2018-05-03","2018-05-04","2018-05-05"]
[null,null,{"$f":"IF(WEEKDAY(CalendarDay)=WeekStartValue,CONCATENATE(\"שבוע \",WEEKNUM(CalendarDay),\"/יום \",CalendarDay-DATE(YEAR(CalendarDay),1,0)),CONCATENATE(\"יום \",CalendarDay-DATE(YEAR(CalendarDay),1,0)))","v":"שבוע 18/יום 119"},{"$f":"IF(WEEKDAY(CalendarDay)=WeekStartValue,CONCATENATE(\"שבוע \",WEEKNUM(CalendarDay),\"/יום \",CalendarDay-DATE(YEAR(CalendarDay),1,0)),CONCATENATE(\"יום \",CalendarDay-DATE(YEAR(CalendarDay),1,0)))","v":"יום 120"},{"$f":"IF(WEEKDAY(CalendarDay)=WeekStartValue,CONCATENATE(\"שבוע \",WEEKNUM(CalendarDay),\"/יום \",CalendarDay-DATE(YEAR(CalendarDay),1,0)),CONCATENATE(\"יום \",CalendarDay-DATE(YEAR(CalendarDay),1,0)))","v":"יום 121"},{"$f":"IF(WEEKDAY(CalendarDay)=WeekStartValue,CONCATENATE(\"שבוע \",WEEKNUM(CalendarDay),\"/יום \",CalendarDay-DATE(YEAR(CalendarDay),1,0)),CONCATENATE(\"יום \",CalendarDay-DATE(YEAR(CalendarDay),1,0)))","v":"יום 122"},{"$f":"IF(WEEKDAY(CalendarDay)=WeekStartValue,CONCATENATE(\"שבוע \",WEEKNUM(CalendarDay),\"/יום \",CalendarDay-DATE(YEAR(CalendarDay),1,0)),CONCATENATE(\"יום \",CalendarDay-DATE(YEAR(CalendarDay),1,0)))","v":"יום 123"},{"$f":"IF(WEEKDAY(CalendarDay)=WeekStartValue,CONCATENATE(\"שבוע \",WEEKNUM(CalendarDay),\"/יום \",CalendarDay-DATE(YEAR(CalendarDay),1,0)),CONCATENATE(\"יום \",CalendarDay-DATE(YEAR(CalendarDay),1,0)))","v":"יום 124"},{"$f":"IF(WEEKDAY(CalendarDay)=WeekStartValue,CONCATENATE(\"שבוע \",WEEKNUM(CalendarDay),\"/יום \",CalendarDay-DATE(YEAR(CalendarDay),1,0)),CONCATENATE(\"יום \",CalendarDay-DATE(YEAR(CalendarDay),1,0)))","v":"יום 125"}]
[{"$nulls":4},"הערות"]
[]
[null,null,{"$f":"DaysAndWeeks+DATE(CalendarYear,4,1)-WEEKDAY(DATE(CalendarYear,4,1),(WeekStart=\"יום ב\")+1)+36","v":"2018-05-06"},"2018-05-07"]
[null,null,{"$f":"IF(WEEKDAY(CalendarDay)=WeekStartValue,CONCATENATE(\"שבוע \",WEEKNUM(CalendarDay),\"/יום \",CalendarDay-DATE(YEAR(CalendarDay),1,0)),CONCATENATE(\"יום \",CalendarDay-DATE(YEAR(CalendarDay),1,0)))","v":"שבוע 19/יום 126"},{"$f":"IF(WEEKDAY(CalendarDay)=WeekStartValue,CONCATENATE(\"שבוע \",WEEKNUM(CalendarDay),\"/יום \",CalendarDay-DATE(YEAR(CalendarDay),1,0)),CONCATENATE(\"יום \",CalendarDay-DATE(YEAR(CalendarDay),1,0)))","v":"יום 127"}]

{"sheet":"מאי","index":4,"n_rows":20,"n_cols":9,"rows_kept":20,"merged":[[16,2,17,2],[17,4,19,8]]}
[null,"מאי",{"$f":"UPPER(TEXT(WeekStart,\"ddd\"))","v":"יום א"},{"$f":"UPPER(TEXT(D3,\"aaa\"))","v":"יום ב"},"יום ג","יום ד","יום ה","יום ו","שבת"]
[null,{"$f":"CalendarYear","v":2018}]
[null,null,{"$f":"DaysAndWeeks+DATE(CalendarYear,5,1)-WEEKDAY(DATE(CalendarYear,5,1),(WeekStart=\"יום ב\")+1)+1","v":"2018-04-29"},"2018-04-30","2018-05-01","2018-05-02","2018-05-03","2018-05-04","2018-05-05"]
[null,null,{"$f":"IF(DAY(CalendarDay)=1,CONCATENATE(\"שבוע \",WEEKNUM(CalendarDay),\"/יום \",CalendarDay-DATE(YEAR(CalendarDay),1,0)),CONCATENATE(\"יום \",CalendarDay-DATE(YEAR(CalendarDay),1,0)))","v":"יום 119"},"יום 120","שבוע 18/יום 121","יום 122","יום 123","יום 124","יום 125"]
[]
[null,null,{"$f":"DaysAndWeeks+DATE(CalendarYear,5,1)-WEEKDAY(DATE(CalendarYear,5,1),(WeekStart=\"יום ב\")+1)+8","v":"2018-05-06"},"2018-05-07","2018-05-08","2018-05-09","2018-05-10","2018-05-11","2018-05-12"]
[null,null,{"$f":"IF(WEEKDAY(CalendarDay)=WeekStartValue,CONCATENATE(\"שבוע \",WEEKNUM(CalendarDay),\"/יום \",CalendarDay-DATE(YEAR(CalendarDay),1,0)),CONCATENATE(\"יום \",CalendarDay-DATE(YEAR(CalendarDay),1,0)))","v":"שבוע 19/יום 126"},{"$f":"IF(WEEKDAY(CalendarDay)=WeekStartValue,CONCATENATE(\"שבוע \",WEEKNUM(CalendarDay),\"/יום \",CalendarDay-DATE(YEAR(CalendarDay),1,0)),CONCATENATE(\"יום \",CalendarDay-DATE(YEAR(CalendarDay),1,0)))","v":"יום 127"},{"$f":"IF(WEEKDAY(CalendarDay)=WeekStartValue,CONCATENATE(\"שבוע \",WEEKNUM(CalendarDay),\"/יום \",CalendarDay-DATE(YEAR(CalendarDay),1,0)),CONCATENATE(\"יום \",CalendarDay-DATE(YEAR(CalendarDay),1,0)))","v":"יום 128"},{"$f":"IF(WEEKDAY(CalendarDay)=WeekStartValue,CONCATENATE(\"שבוע \",WEEKNUM(CalendarDay),\"/יום \",CalendarDay-DATE(YEAR(CalendarDay),1,0)),CONCATENATE(\"יום \",CalendarDay-DATE(YEAR(CalendarDay),1,0)))","v":"יום 129"},{"$f":"IF(WEEKDAY(CalendarDay)=WeekStartValue,CONCATENATE(\"שבוע \",WEEKNUM(CalendarDay),\"/יום \",CalendarDay-DATE(YEAR(CalendarDay),1,0)),CONCATENATE(\"יום \",CalendarDay-DATE(YEAR(CalendarDay),1,0)))","v":"יום 130"},{"$f":"IF(WEEKDAY(CalendarDay)=WeekStartValue,CONCATENATE(\"שבוע \",WEEKNUM(CalendarDay),\"/יום \",CalendarDay-DATE(YEAR(CalendarDay),1,0)),CONCATENATE(\"יום \",CalendarDay-DATE(YEAR(CalendarDay),1,0)))","v":"יום 131"},{"$f":"IF(WEEKDAY(CalendarDay)=WeekStartValue,CONCATENATE(\"שבוע \",WEEKNUM(CalendarDay),\"/יום \",CalendarDay-DATE(YEAR(CalendarDay),1,0)),CONCATENATE(\"יום \",CalendarDay-DATE(YEAR(CalendarDay),1,0)))","v":"יום 132"}]
[]
[null,null,{"$f":"DaysAndWeeks+DATE(CalendarYear,5,1)-WEEKDAY(DATE(CalendarYear,5,1),(WeekStart=\"יום ב\")+1)+15","v":"2018-05-13"},"2018-05-14","2018-05-15","2018-05-16","2018-05-17","2018-05-18","2018-05-19"]
[null,null,{"$f":"IF(WEEKDAY(CalendarDay)=WeekStartValue,CONCATENATE(\"שבוע \",WEEKNUM(CalendarDay),\"/יום \",CalendarDay-DATE(YEAR(CalendarDay),1,0)),CONCATENATE(\"יום \",CalendarDay-DATE(YEAR(CalendarDay),1,0)))","v":"שבוע 20/יום 133"},{"$f":"IF(WEEKDAY(CalendarDay)=WeekStartValue,CONCATENATE(\"שבוע \",WEEKNUM(CalendarDay),\"/יום \",CalendarDay-DATE(YEAR(CalendarDay),1,0)),CONCATENATE(\"יום \",CalendarDay-DATE(YEAR(CalendarDay),1,0)))","v":"יום 134"},{"$f":"IF(WEEKDAY(CalendarDay)=WeekStartValue,CONCATENATE(\"שבוע \",WEEKNUM(CalendarDay),\"/יום \",CalendarDay-DATE(YEAR(CalendarDay),1,0)),CONCATENATE(\"יום \",CalendarDay-DATE(YEAR(CalendarDay),1,0)))","v":"יום 135"},{"$f":"IF(WEEKDAY(CalendarDay)=WeekStartValue,CONCATENATE(\"שבוע \",WEEKNUM(CalendarDay),\"/יום \",CalendarDay-DATE(YEAR(CalendarDay),1,0)),CONCATENATE(\"יום \",CalendarDay-DATE(YEAR(CalendarDay),1,0)))","v":"יום 136"},{"$f":"IF(WEEKDAY(CalendarDay)=WeekStartValue,CONCATENATE(\"שבוע \",WEEKNUM(CalendarDay),\"/יום \",CalendarDay-DATE(YEAR(CalendarDay),1,0)),CONCATENATE(\"יום \",CalendarDay-DATE(YEAR(CalendarDay),1,0)))","v":"יום 137"},{"$f":"IF(WEEKDAY(CalendarDay)=WeekStartValue,CONCATENATE(\"שבוע \",WEEKNUM(CalendarDay),\"/יום \",CalendarDay-DATE(YEAR(CalendarDay),1,0)),CONCATENATE(\"יום \",CalendarDay-DATE(YEAR(CalendarDay),1,0)))","v":"יום 138"},{"$f":"IF(WEEKDAY(CalendarDay)=WeekStartValue,CONCATENATE(\"שבוע \",WEEKNUM(CalendarDay),\"/יום \",CalendarDay-DATE(YEAR(CalendarDay),1,0)),CONCATENATE(\"יום \",CalendarDay-DATE(YEAR(CalendarDay),1,0)))","v":"יום 139"}]
[]
[null,null,{"$f":"DaysAndWeeks+DATE(CalendarYear,5,1)-WEEKDAY(DATE(CalendarYear,5,1),(WeekStart=\"יום ב\")+1)+22","v":"2018-05-20"},"2018-05-21","2018-05-22","2018-05-23","2018-05-24","2018-05-25","2018-05-26"]
[null,null,{"$f":"IF(WEEKDAY(CalendarDay)=WeekStartValue,CONCATENATE(\"שבוע \",WEEKNUM(CalendarDay),\"/יום \",CalendarDay-DATE(YEAR(CalendarDay),1,0)),CONCATENATE(\"יום \",CalendarDay-DATE(YEAR(CalendarDay),1,0)))","v":"שבוע 21/יום 140"},{"$f":"IF(WEEKDAY(CalendarDay)=WeekStartValue,CONCATENATE(\"שבוע \",WEEKNUM(CalendarDay),\"/יום \",CalendarDay-DATE(YEAR(CalendarDay),1,0)),CONCATENATE(\"יום \",CalendarDay-DATE(YEAR(CalendarDay),1,0)))","v":"יום 141"},{"$f":"IF(WEEKDAY(CalendarDay)=WeekStartValue,CONCATENATE(\"שבוע \",WEEKNUM(CalendarDay),\"/יום \",CalendarDay-DATE(YEAR(CalendarDay),1,0)),CONCATENATE(\"יום \",CalendarDay-DATE(YEAR(CalendarDay),1,0)))","v":"יום 142"},{"$f":"IF(WEEKDAY(CalendarDay)=WeekStartValue,CONCATENATE(\"שבוע \",WEEKNUM(CalendarDay),\"/יום \",CalendarDay-DATE(YEAR(CalendarDay),1,0)),CONCATENATE(\"יום \",CalendarDay-DATE(YEAR(CalendarDay),1,0)))","v":"יום 143"},{"$f":"IF(WEEKDAY(CalendarDay)=WeekStartValue,CONCATENATE(\"שבוע \",WEEKNUM(CalendarDay),\"/יום \",CalendarDay-DATE(YEAR(CalendarDay),1,0)),CONCATENATE(\"יום \",CalendarDay-DATE(YEAR(CalendarDay),1,0)))","v":"יום 144"},{"$f":"IF(WEEKDAY(CalendarDay)=WeekStartValue,CONCATENATE(\"שבוע \",WEEKNUM(CalendarDay),\"/יום \",CalendarDay-DATE(YEAR(CalendarDay),1,0)),CONCATENATE(\"יום \",CalendarDay-DATE(YEAR(CalendarDay),1,0)))","v":"יום 145"},{"$f":"IF(WEEKDAY(CalendarDay)=WeekStartValue,CONCATENATE(\"שבוע \",WEEKNUM(CalendarDay),\"/יום \",CalendarDay-DATE(YEAR(CalendarDay),1,0)),CONCATENATE(\"יום \",CalendarDay-DATE(YEAR(CalendarDay),1,0)))","v":"יום 146"}]
[]
[null,null,{"$f":"DaysAndWeeks+DATE(CalendarYear,5,1)-WEEKDAY(DATE(CalendarYear,5,1),(WeekStart=\"יום ב\")+1)+29","v":"2018-05-27"},"2018-05-28","2018-05-29","2018-05-30","2018-05-31","2018-06-01","2018-06-02"]
[null,null,{"$f":"IF(WEEKDAY(CalendarDay)=WeekStartValue,CONCATENATE(\"שבוע \",WEEKNUM(CalendarDay),\"/יום \",CalendarDay-DATE(YEAR(CalendarDay),1,0)),CONCATENATE(\"יום \",CalendarDay-DATE(YEAR(CalendarDay),1,0)))","v":"שבוע 22/יום 147"},{"$f":"IF(WEEKDAY(CalendarDay)=WeekStartValue,CONCATENATE(\"שבוע \",WEEKNUM(CalendarDay),\"/יום \",CalendarDay-DATE(YEAR(CalendarDay),1,0)),CONCATENATE(\"יום \",CalendarDay-DATE(YEAR(CalendarDay),1,0)))","v":"יום 148"},{"$f":"IF(WEEKDAY(CalendarDay)=WeekStartValue,CONCATENATE(\"שבוע \",WEEKNUM(CalendarDay),\"/יום \",CalendarDay-DATE(YEAR(CalendarDay),1,0)),CONCATENATE(\"יום \",CalendarDay-DATE(YEAR(CalendarDay),1,0)))","v":"יום 149"},{"$f":"IF(WEEKDAY(CalendarDay)=WeekStartValue,CONCATENATE(\"שבוע \",WEEKNUM(CalendarDay),\"/יום \",CalendarDay-DATE(YEAR(CalendarDay),1,0)),CONCATENATE(\"יום \",CalendarDay-DATE(YEAR(CalendarDay),1,0)))","v":"יום 150"},{"$f":"IF(WEEKDAY(CalendarDay)=WeekStartValue,CONCATENATE(\"שבוע \",WEEKNUM(CalendarDay),\"/יום \",CalendarDay-DATE(YEAR(CalendarDay),1,0)),CONCATENATE(\"יום \",CalendarDay-DATE(YEAR(CalendarDay),1,0)))","v":"יום 151"},{"$f":"IF(WEEKDAY(CalendarDay)=WeekStartValue,CONCATENATE(\"שבוע \",WEEKNUM(CalendarDay),\"/יום \",CalendarDay-DATE(YEAR(CalendarDay),1,0)),CONCATENATE(\"יום \",CalendarDay-DATE(YEAR(CalendarDay),1,0)))","v":"יום 152"},{"$f":"IF(WEEKDAY(CalendarDay)=WeekStartValue,CONCATENATE(\"שבוע \",WEEKNUM(CalendarDay),\"/יום \",CalendarDay-DATE(YEAR(CalendarDay),1,0)),CONCATENATE(\"יום \",CalendarDay-DATE(YEAR(CalendarDay),1,0)))","v":"יום 153"}]
[{"$nulls":4},"הערות"]
[]
[null,null,{"$f":"DaysAndWeeks+DATE(CalendarYear,5,1)-WEEKDAY(DATE(CalendarYear,5,1),(WeekStart=\"יום ב\")+1)+36","v":"2018-06-03"},"2018-06-04"]
[null,null,{"$f":"IF(WEEKDAY(CalendarDay)=WeekStartValue,CONCATENATE(\"שבוע \",WEEKNUM(CalendarDay),\"/יום \",CalendarDay-DATE(YEAR(CalendarDay),1,0)),CONCATENATE(\"יום \",CalendarDay-DATE(YEAR(CalendarDay),1,0)))","v":"שבוע 23/יום 154"},{"$f":"IF(WEEKDAY(CalendarDay)=WeekStartValue,CONCATENATE(\"שבוע \",WEEKNUM(CalendarDay),\"/יום \",CalendarDay-DATE(YEAR(CalendarDay),1,0)),CONCATENATE(\"יום \",CalendarDay-DATE(YEAR(CalendarDay),1,0)))","v":"יום 155"}]

{"sheet":"יונ","index":5,"n_rows":20,"n_cols":9,"rows_kept":20,"merged":[[16,2,17,2],[17,4,19,8]]}
[null,"יונ",{"$f":"UPPER(TEXT(WeekStart,\"ddd\"))","v":"יום א"},{"$f":"UPPER(TEXT(D3,\"aaa\"))","v":"יום ב"},"יום ג","יום ד","יום ה","יום ו","שבת"]
[null,{"$f":"CalendarYear","v":2018}]
[null,null,{"$f":"DaysAndWeeks+DATE(CalendarYear,6,1)-WEEKDAY(DATE(CalendarYear,6,1),(WeekStart=\"יום ב\")+1)+1","v":"2018-05-27"},"2018-05-28","2018-05-29","2018-05-30","2018-05-31","2018-06-01","2018-06-02"]
[null,null,{"$f":"IF(DAY(CalendarDay)=1,CONCATENATE(\"שבוע \",WEEKNUM(CalendarDay),\"/יום \",CalendarDay-DATE(YEAR(CalendarDay),1,0)),CONCATENATE(\"יום \",CalendarDay-DATE(YEAR(CalendarDay),1,0)))","v":"יום 147"},"יום 148","יום 149","יום 150","יום 151","שבוע 22/יום 152","יום 153"]
[]
[null,null,{"$f":"DaysAndWeeks+DATE(CalendarYear,6,1)-WEEKDAY(DATE(CalendarYear,6,1),(WeekStart=\"יום ב\")+1)+8","v":"2018-06-03"},"2018-06-04","2018-06-05","2018-06-06","2018-06-07","2018-06-08","2018-06-09"]
[null,null,{"$f":"IF(WEEKDAY(CalendarDay)=WeekStartValue,CONCATENATE(\"שבוע \",WEEKNUM(CalendarDay),\"/יום \",CalendarDay-DATE(YEAR(CalendarDay),1,0)),CONCATENATE(\"יום \",CalendarDay-DATE(YEAR(CalendarDay),1,0)))","v":"שבוע 23/יום 154"},{"$f":"IF(WEEKDAY(CalendarDay)=WeekStartValue,CONCATENATE(\"שבוע \",WEEKNUM(CalendarDay),\"/יום \",CalendarDay-DATE(YEAR(CalendarDay),1,0)),CONCATENATE(\"יום \",CalendarDay-DATE(YEAR(CalendarDay),1,0)))","v":"יום 155"},{"$f":"IF(WEEKDAY(CalendarDay)=WeekStartValue,CONCATENATE(\"שבוע \",WEEKNUM(CalendarDay),\"/יום \",CalendarDay-DATE(YEAR(CalendarDay),1,0)),CONCATENATE(\"יום \",CalendarDay-DATE(YEAR(CalendarDay),1,0)))","v":"יום 156"},{"$f":"IF(WEEKDAY(CalendarDay)=WeekStartValue,CONCATENATE(\"שבוע \",WEEKNUM(CalendarDay),\"/יום \",CalendarDay-DATE(YEAR(CalendarDay),1,0)),CONCATENATE(\"יום \",CalendarDay-DATE(YEAR(CalendarDay),1,0)))","v":"יום 157"},{"$f":"IF(WEEKDAY(CalendarDay)=WeekStartValue,CONCATENATE(\"שבוע \",WEEKNUM(CalendarDay),\"/יום \",CalendarDay-DATE(YEAR(CalendarDay),1,0)),CONCATENATE(\"יום \",CalendarDay-DATE(YEAR(CalendarDay),1,0)))","v":"יום 158"},{"$f":"IF(WEEKDAY(CalendarDay)=WeekStartValue,CONCATENATE(\"שבוע \",WEEKNUM(CalendarDay),\"/יום \",CalendarDay-DATE(YEAR(CalendarDay),1,0)),CONCATENATE(\"יום \",CalendarDay-DATE(YEAR(CalendarDay),1,0)))","v":"יום 159"},{"$f":"IF(WEEKDAY(CalendarDay)=WeekStartValue,CONCATENATE(\"שבוע \",WEEKNUM(CalendarDay),\"/יום \",CalendarDay-DATE(YEAR(CalendarDay),1,0)),CONCATENATE(\"יום \",CalendarDay-DATE(YEAR(CalendarDay),1,0)))","v":"יום 160"}]
[]
[null,null,{"$f":"DaysAndWeeks+DATE(CalendarYear,6,1)-WEEKDAY(DATE(CalendarYear,6,1),(WeekStart=\"יום ב\")+1)+15","v":"2018-06-10"},"2018-06-11","2018-06-12","2018-06-13","2018-06-14","2018-06-15","2018-06-16"]
[null,null,{"$f":"IF(WEEKDAY(CalendarDay)=WeekStartValue,CONCATENATE(\"שבוע \",WEEKNUM(CalendarDay),\"/יום \",CalendarDay-DATE(YEAR(CalendarDay),1,0)),CONCATENATE(\"יום \",CalendarDay-DATE(YEAR(CalendarDay),1,0)))","v":"שבוע 24/יום 161"},{"$f":"IF(WEEKDAY(CalendarDay)=WeekStartValue,CONCATENATE(\"שבוע \",WEEKNUM(CalendarDay),\"/יום \",CalendarDay-DATE(YEAR(CalendarDay),1,0)),CONCATENATE(\"יום \",CalendarDay-DATE(YEAR(CalendarDay),1,0)))","v":"יום 162"},{"$f":"IF(WEEKDAY(CalendarDay)=WeekStartValue,CONCATENATE(\"שבוע \",WEEKNUM(CalendarDay),\"/יום \",CalendarDay-DATE(YEAR(CalendarDay),1,0)),CONCATENATE(\"יום \",CalendarDay-DATE(YEAR(CalendarDay),1,0)))","v":"יום 163"},{"$f":"IF(WEEKDAY(CalendarDay)=WeekStartValue,CONCATENATE(\"שבוע \",WEEKNUM(CalendarDay),\"/יום \",CalendarDay-DATE(YEAR(CalendarDay),1,0)),CONCATENATE(\"יום \",CalendarDay-DATE(YEAR(CalendarDay),1,0)))","v":"יום 164"},{"$f":"IF(WEEKDAY(CalendarDay)=WeekStartValue,CONCATENATE(\"שבוע \",WEEKNUM(CalendarDay),\"/יום \",CalendarDay-DATE(YEAR(CalendarDay),1,0)),CONCATENATE(\"יום \",CalendarDay-DATE(YEAR(CalendarDay),1,0)))","v":"יום 165"},{"$f":"IF(WEEKDAY(CalendarDay)=WeekStartValue,CONCATENATE(\"שבוע \",WEEKNUM(CalendarDay),\"/יום \",CalendarDay-DATE(YEAR(CalendarDay),1,0)),CONCATENATE(\"יום \",CalendarDay-DATE(YEAR(CalendarDay),1,0)))","v":"יום 166"},{"$f":"IF(WEEKDAY(CalendarDay)=WeekStartValue,CONCATENATE(\"שבוע \",WEEKNUM(CalendarDay),\"/יום \",CalendarDay-DATE(YEAR(CalendarDay),1,0)),CONCATENATE(\"יום \",CalendarDay-DATE(YEAR(CalendarDay),1,0)))","v":"יום 167"}]
[]
[null,null,{"$f":"DaysAndWeeks+DATE(CalendarYear,6,1)-WEEKDAY(DATE(CalendarYear,6,1),(WeekStart=\"יום ב\")+1)+22","v":"2018-06-17"},"2018-06-18","2018-06-19","2018-06-20","2018-06-21","2018-06-22","2018-06-23"]
[null,null,{"$f":"IF(WEEKDAY(CalendarDay)=WeekStartValue,CONCATENATE(\"שבוע \",WEEKNUM(CalendarDay),\"/יום \",CalendarDay-DATE(YEAR(CalendarDay),1,0)),CONCATENATE(\"יום \",CalendarDay-DATE(YEAR(CalendarDay),1,0)))","v":"שבוע 25/יום 168"},{"$f":"IF(WEEKDAY(CalendarDay)=WeekStartValue,CONCATENATE(\"שבוע \",WEEKNUM(CalendarDay),\"/יום \",CalendarDay-DATE(YEAR(CalendarDay),1,0)),CONCATENATE(\"יום \",CalendarDay-DATE(YEAR(CalendarDay),1,0)))","v":"יום 169"},{"$f":"IF(WEEKDAY(CalendarDay)=WeekStartValue,CONCATENATE(\"שבוע \",WEEKNUM(CalendarDay),\"/יום \",CalendarDay-DATE(YEAR(CalendarDay),1,0)),CONCATENATE(\"יום \",CalendarDay-DATE(YEAR(CalendarDay),1,0)))","v":"יום 170"},{"$f":"IF(WEEKDAY(CalendarDay)=WeekStartValue,CONCATENATE(\"שבוע \",WEEKNUM(CalendarDay),\"/יום \",CalendarDay-DATE(YEAR(CalendarDay),1,0)),CONCATENATE(\"יום \",CalendarDay-DATE(YEAR(CalendarDay),1,0)))","v":"יום 171"},{"$f":"IF(WEEKDAY(CalendarDay)=WeekStartValue,CONCATENATE(\"שבוע \",WEEKNUM(CalendarDay),\"/יום \",CalendarDay-DATE(YEAR(CalendarDay),1,0)),CONCATENATE(\"יום \",CalendarDay-DATE(YEAR(CalendarDay),1,0)))","v":"יום 172"},{"$f":"IF(WEEKDAY(CalendarDay)=WeekStartValue,CONCATENATE(\"שבוע \",WEEKNUM(CalendarDay),\"/יום \",CalendarDay-DATE(YEAR(CalendarDay),1,0)),CONCATENATE(\"יום \",CalendarDay-DATE(YEAR(CalendarDay),1,0)))","v":"יום 173"},{"$f":"IF(WEEKDAY(CalendarDay)=WeekStartValue,CONCATENATE(\"שבוע \",WEEKNUM(CalendarDay),\"/יום \",CalendarDay-DATE(YEAR(CalendarDay),1,0)),CONCATENATE(\"יום \",CalendarDay-DATE(YEAR(CalendarDay),1,0)))","v":"יום 174"}]
[]
[null,null,{"$f":"DaysAndWeeks+DATE(CalendarYear,6,1)-WEEKDAY(DATE(CalendarYear,6,1),(WeekStart=\"יום ב\")+1)+29","v":"2018-06-24"},"2018-06-25","2018-06-26","2018-06-27","2018-06-28","2018-06-29","2018-06-30"]
[null,null,{"$f":"IF(WEEKDAY(CalendarDay)=WeekStartValue,CONCATENATE(\"שבוע \",WEEKNUM(CalendarDay),\"/יום \",CalendarDay-DATE(YEAR(CalendarDay),1,0)),CONCATENATE(\"יום \",CalendarDay-DATE(YEAR(CalendarDay),1,0)))","v":"שבוע 26/יום 175"},{"$f":"IF(WEEKDAY(CalendarDay)=WeekStartValue,CONCATENATE(\"שבוע \",WEEKNUM(CalendarDay),\"/יום \",CalendarDay-DATE(YEAR(CalendarDay),1,0)),CONCATENATE(\"יום \",CalendarDay-DATE(YEAR(CalendarDay),1,0)))","v":"יום 176"},{"$f":"IF(WEEKDAY(CalendarDay)=WeekStartValue,CONCATENATE(\"שבוע \",WEEKNUM(CalendarDay),\"/יום \",CalendarDay-DATE(YEAR(CalendarDay),1,0)),CONCATENATE(\"יום \",CalendarDay-DATE(YEAR(CalendarDay),1,0)))","v":"יום 177"},{"$f":"IF(WEEKDAY(CalendarDay)=WeekStartValue,CONCATENATE(\"שבוע \",WEEKNUM(CalendarDay),\"/יום \",CalendarDay-DATE(YEAR(CalendarDay),1,0)),CONCATENATE(\"יום \",CalendarDay-DATE(YEAR(CalendarDay),1,0)))","v":"יום 178"},{"$f":"IF(WEEKDAY(CalendarDay)=WeekStartValue,CONCATENATE(\"שבוע \",WEEKNUM(CalendarDay),\"/יום \",CalendarDay-DATE(YEAR(CalendarDay),1,0)),CONCATENATE(\"יום \",CalendarDay-DATE(YEAR(CalendarDay),1,0)))","v":"יום 179"},{"$f":"IF(WEEKDAY(CalendarDay)=WeekStartValue,CONCATENATE(\"שבוע \",WEEKNUM(CalendarDay),\"/יום \",CalendarDay-DATE(YEAR(CalendarDay),1,0)),CONCATENATE(\"יום \",CalendarDay-DATE(YEAR(CalendarDay),1,0)))","v":"יום 180"},{"$f":"IF(WEEKDAY(CalendarDay)=WeekStartValue,CONCATENATE(\"שבוע \",WEEKNUM(CalendarDay),\"/יום \",CalendarDay-DATE(YEAR(CalendarDay),1,0)),CONCATENATE(\"יום \",CalendarDay-DATE(YEAR(CalendarDay),1,0)))","v":"יום 181"}]
[{"$nulls":4},"הערות"]
[]
[null,null,{"$f":"DaysAndWeeks+DATE(CalendarYear,6,1)-WEEKDAY(DATE(CalendarYear,6,1),(WeekStart=\"יום ב\")+1)+36","v":"2018-07-01"},"2018-07-02"]
[null,null,{"$f":"IF(WEEKDAY(CalendarDay)=WeekStartValue,CONCATENATE(\"שבוע \",WEEKNUM(CalendarDay),\"/יום \",CalendarDay-DATE(YEAR(CalendarDay),1,0)),CONCATENATE(\"יום \",CalendarDay-DATE(YEAR(CalendarDay),1,0)))","v":"שבוע 27/יום 182"},{"$f":"IF(WEEKDAY(CalendarDay)=WeekStartValue,CONCATENATE(\"שבוע \",WEEKNUM(CalendarDay),\"/יום \",CalendarDay-DATE(YEAR(CalendarDay),1,0)),CONCATENATE(\"יום \",CalendarDay-DATE(YEAR(CalendarDay),1,0)))","v":"יום 183"}]

{"sheet":"יול","index":6,"n_rows":20,"n_cols":9,"rows_kept":20,"merged":[[16,2,17,2],[17,4,19,8]]}
[null,"יול",{"$f":"UPPER(TEXT(WeekStart,\"ddd\"))","v":"יום א"},{"$f":"UPPER(TEXT(D3,\"aaa\"))","v":"יום ב"},"יום ג","יום ד","יום ה","יום ו","שבת"]
[null,{"$f":"CalendarYear","v":2018}]
[null,null,{"$f":"DaysAndWeeks+DATE(CalendarYear,7,1)-WEEKDAY(DATE(CalendarYear,7,1),(WeekStart=\"יום ב\")+1)+1","v":"2018-07-01"},"2018-07-02","2018-07-03","2018-07-04","2018-07-05","2018-07-06","2018-07-07"]
[null,null,{"$f":"IF(DAY(CalendarDay)=1,CONCATENATE(\"שבוע \",WEEKNUM(CalendarDay),\"/יום \",CalendarDay-DATE(YEAR(CalendarDay),1,0)),CONCATENATE(\"יום \",CalendarDay-DATE(YEAR(CalendarDay),1,0)))","v":"שבוע 27/יום 182"},"יום 183","יום 184","יום 185","יום 186","יום 187","יום 188"]
[]
[null,null,{"$f":"DaysAndWeeks+DATE(CalendarYear,7,1)-WEEKDAY(DATE(CalendarYear,7,1),(WeekStart=\"יום ב\")+1)+8","v":"2018-07-08"},"2018-07-09","2018-07-10","2018-07-11","2018-07-12","2018-07-13","2018-07-14"]
[null,null,{"$f":"IF(WEEKDAY(CalendarDay)=WeekStartValue,CONCATENATE(\"שבוע \",WEEKNUM(CalendarDay),\"/יום \",CalendarDay-DATE(YEAR(CalendarDay),1,0)),CONCATENATE(\"יום \",CalendarDay-DATE(YEAR(CalendarDay),1,0)))","v":"שבוע 28/יום 189"},{"$f":"IF(WEEKDAY(CalendarDay)=WeekStartValue,CONCATENATE(\"שבוע \",WEEKNUM(CalendarDay),\"/יום \",CalendarDay-DATE(YEAR(CalendarDay),1,0)),CONCATENATE(\"יום \",CalendarDay-DATE(YEAR(CalendarDay),1,0)))","v":"יום 190"},{"$f":"IF(WEEKDAY(CalendarDay)=WeekStartValue,CONCATENATE(\"שבוע \",WEEKNUM(CalendarDay),\"/יום \",CalendarDay-DATE(YEAR(CalendarDay),1,0)),CONCATENATE(\"יום \",CalendarDay-DATE(YEAR(CalendarDay),1,0)))","v":"יום 191"},{"$f":"IF(WEEKDAY(CalendarDay)=WeekStartValue,CONCATENATE(\"שבוע \",WEEKNUM(CalendarDay),\"/יום \",CalendarDay-DATE(YEAR(CalendarDay),1,0)),CONCATENATE(\"יום \",CalendarDay-DATE(YEAR(CalendarDay),1,0)))","v":"יום 192"},{"$f":"IF(WEEKDAY(CalendarDay)=WeekStartValue,CONCATENATE(\"שבוע \",WEEKNUM(CalendarDay),\"/יום \",CalendarDay-DATE(YEAR(CalendarDay),1,0)),CONCATENATE(\"יום \",CalendarDay-DATE(YEAR(CalendarDay),1,0)))","v":"יום 193"},{"$f":"IF(WEEKDAY(CalendarDay)=WeekStartValue,CONCATENATE(\"שבוע \",WEEKNUM(CalendarDay),\"/יום \",CalendarDay-DATE(YEAR(CalendarDay),1,0)),CONCATENATE(\"יום \",CalendarDay-DATE(YEAR(CalendarDay),1,0)))","v":"יום 194"},{"$f":"IF(WEEKDAY(CalendarDay)=WeekStartValue,CONCATENATE(\"שבוע \",WEEKNUM(CalendarDay),\"/יום \",CalendarDay-DATE(YEAR(CalendarDay),1,0)),CONCATENATE(\"יום \",CalendarDay-DATE(YEAR(CalendarDay),1,0)))","v":"יום 195"}]
[]
[null,null,{"$f":"DaysAndWeeks+DATE(CalendarYear,7,1)-WEEKDAY(DATE(CalendarYear,7,1),(WeekStart=\"יום ב\")+1)+15","v":"2018-07-15"},"2018-07-16","2018-07-17","2018-07-18","2018-07-19","2018-07-20","2018-07-21"]
[null,null,{"$f":"IF(WEEKDAY(CalendarDay)=WeekStartValue,CONCATENATE(\"שבוע \",WEEKNUM(CalendarDay),\"/יום \",CalendarDay-DATE(YEAR(CalendarDay),1,0)),CONCATENATE(\"יום \",CalendarDay-DATE(YEAR(CalendarDay),1,0)))","v":"שבוע 29/יום 196"},{"$f":"IF(WEEKDAY(CalendarDay)=WeekStartValue,CONCATENATE(\"שבוע \",WEEKNUM(CalendarDay),\"/יום \",CalendarDay-DATE(YEAR(CalendarDay),1,0)),CONCATENATE(\"יום \",CalendarDay-DATE(YEAR(CalendarDay),1,0)))","v":"יום 197"},{"$f":"IF(WEEKDAY(CalendarDay)=WeekStartValue,CONCATENATE(\"שבוע \",WEEKNUM(CalendarDay),\"/יום \",CalendarDay-DATE(YEAR(CalendarDay),1,0)),CONCATENATE(\"יום \",CalendarDay-DATE(YEAR(CalendarDay),1,0)))","v":"יום 198"},{"$f":"IF(WEEKDAY(CalendarDay)=WeekStartValue,CONCATENATE(\"שבוע \",WEEKNUM(CalendarDay),\"/יום \",CalendarDay-DATE(YEAR(CalendarDay),1,0)),CONCATENATE(\"יום \",CalendarDay-DATE(YEAR(CalendarDay),1,0)))","v":"יום 199"},{"$f":"IF(WEEKDAY(CalendarDay)=WeekStartValue,CONCATENATE(\"שבוע \",WEEKNUM(CalendarDay),\"/יום \",CalendarDay-DATE(YEAR(CalendarDay),1,0)),CONCATENATE(\"יום \",CalendarDay-DATE(YEAR(CalendarDay),1,0)))","v":"יום 200"},{"$f":"IF(WEEKDAY(CalendarDay)=WeekStartValue,CONCATENATE(\"שבוע \",WEEKNUM(CalendarDay),\"/יום \",CalendarDay-DATE(YEAR(CalendarDay),1,0)),CONCATENATE(\"יום \",CalendarDay-DATE(YEAR(CalendarDay),1,0)))","v":"יום 201"},{"$f":"IF(WEEKDAY(CalendarDay)=WeekStartValue,CONCATENATE(\"שבוע \",WEEKNUM(CalendarDay),\"/יום \",CalendarDay-DATE(YEAR(CalendarDay),1,0)),CONCATENATE(\"יום \",CalendarDay-DATE(YEAR(CalendarDay),1,0)))","v":"יום 202"}]
[]
[null,null,{"$f":"DaysAndWeeks+DATE(CalendarYear,7,1)-WEEKDAY(DATE(CalendarYear,7,1),(WeekStart=\"יום ב\")+1)+22","v":"2018-07-22"},"2018-07-23","2018-07-24","2018-07-25","2018-07-26","2018-07-27","2018-07-28"]
[null,null,{"$f":"IF(WEEKDAY(CalendarDay)=WeekStartValue,CONCATENATE(\"שבוע \",WEEKNUM(CalendarDay),\"/יום \",CalendarDay-DATE(YEAR(CalendarDay),1,0)),CONCATENATE(\"יום \",CalendarDay-DATE(YEAR(CalendarDay),1,0)))","v":"שבוע 30/יום 203"},{"$f":"IF(WEEKDAY(CalendarDay)=WeekStartValue,CONCATENATE(\"שבוע \",WEEKNUM(CalendarDay),\"/יום \",CalendarDay-DATE(YEAR(CalendarDay),1,0)),CONCATENATE(\"יום \",CalendarDay-DATE(YEAR(CalendarDay),1,0)))","v":"יום 204"},{"$f":"IF(WEEKDAY(CalendarDay)=WeekStartValue,CONCATENATE(\"שבוע \",WEEKNUM(CalendarDay),\"/יום \",CalendarDay-DATE(YEAR(CalendarDay),1,0)),CONCATENATE(\"יום \",CalendarDay-DATE(YEAR(CalendarDay),1,0)))","v":"יום 205"},{"$f":"IF(WEEKDAY(CalendarDay)=WeekStartValue,CONCATENATE(\"שבוע \",WEEKNUM(CalendarDay),\"/יום \",CalendarDay-DATE(YEAR(CalendarDay),1,0)),CONCATENATE(\"יום \",CalendarDay-DATE(YEAR(CalendarDay),1,0)))","v":"יום 206"},{"$f":"IF(WEEKDAY(CalendarDay)=WeekStartValue,CONCATENATE(\"שבוע \",WEEKNUM(CalendarDay),\"/יום \",CalendarDay-DATE(YEAR(CalendarDay),1,0)),CONCATENATE(\"יום \",CalendarDay-DATE(YEAR(CalendarDay),1,0)))","v":"יום 207"},{"$f":"IF(WEEKDAY(CalendarDay)=WeekStartValue,CONCATENATE(\"שבוע \",WEEKNUM(CalendarDay),\"/יום \",CalendarDay-DATE(YEAR(CalendarDay),1,0)),CONCATENATE(\"יום \",CalendarDay-DATE(YEAR(CalendarDay),1,0)))","v":"יום 208"},{"$f":"IF(WEEKDAY(CalendarDay)=WeekStartValue,CONCATENATE(\"שבוע \",WEEKNUM(CalendarDay),\"/יום \",CalendarDay-DATE(YEAR(CalendarDay),1,0)),CONCATENATE(\"יום \",CalendarDay-DATE(YEAR(CalendarDay),1,0)))","v":"יום 209"}]
[]
[null,null,{"$f":"DaysAndWeeks+DATE(CalendarYear,7,1)-WEEKDAY(DATE(CalendarYear,7,1),(WeekStart=\"יום ב\")+1)+29","v":"2018-07-29"},"2018-07-30","2018-07-31","2018-08-01","2018-08-02","2018-08-03","2018-08-04"]
[null,null,{"$f":"IF(WEEKDAY(CalendarDay)=WeekStartValue,CONCATENATE(\"שבוע \",WEEKNUM(CalendarDay),\"/יום \",CalendarDay-DATE(YEAR(CalendarDay),1,0)),CONCATENATE(\"יום \",CalendarDay-DATE(YEAR(CalendarDay),1,0)))","v":"שבוע 31/יום 210"},{"$f":"IF(WEEKDAY(CalendarDay)=WeekStartValue,CONCATENATE(\"שבוע \",WEEKNUM(CalendarDay),\"/יום \",CalendarDay-DATE(YEAR(CalendarDay),1,0)),CONCATENATE(\"יום \",CalendarDay-DATE(YEAR(CalendarDay),1,0)))","v":"יום 211"},{"$f":"IF(WEEKDAY(CalendarDay)=WeekStartValue,CONCATENATE(\"שבוע \",WEEKNUM(CalendarDay),\"/יום \",CalendarDay-DATE(YEAR(CalendarDay),1,0)),CONCATENATE(\"יום \",CalendarDay-DATE(YEAR(CalendarDay),1,0)))","v":"יום 212"},{"$f":"IF(WEEKDAY(CalendarDay)=WeekStartValue,CONCATENATE(\"שבוע \",WEEKNUM(CalendarDay),\"/יום \",CalendarDay-DATE(YEAR(CalendarDay),1,0)),CONCATENATE(\"יום \",CalendarDay-DATE(YEAR(CalendarDay),1,0)))","v":"יום 213"},{"$f":"IF(WEEKDAY(CalendarDay)=WeekStartValue,CONCATENATE(\"שבוע \",WEEKNUM(CalendarDay),\"/יום \",CalendarDay-DATE(YEAR(CalendarDay),1,0)),CONCATENATE(\"יום \",CalendarDay-DATE(YEAR(CalendarDay),1,0)))","v":"יום 214"},{"$f":"IF(WEEKDAY(CalendarDay)=WeekStartValue,CONCATENATE(\"שבוע \",WEEKNUM(CalendarDay),\"/יום \",CalendarDay-DATE(YEAR(CalendarDay),1,0)),CONCATENATE(\"יום \",CalendarDay-DATE(YEAR(CalendarDay),1,0)))","v":"יום 215"},{"$f":"IF(WEEKDAY(CalendarDay)=WeekStartValue,CONCATENATE(\"שבוע \",WEEKNUM(CalendarDay),\"/יום \",CalendarDay-DATE(YEAR(CalendarDay),1,0)),CONCATENATE(\"יום \",CalendarDay-DATE(YEAR(CalendarDay),1,0)))","v":"יום 216"}]
[{"$nulls":4},"הערות"]
[]
[null,null,{"$f":"DaysAndWeeks+DATE(CalendarYear,7,1)-WEEKDAY(DATE(CalendarYear,7,1),(WeekStart=\"יום ב\")+1)+36","v":"2018-08-05"},"2018-08-06"]
[null,null,{"$f":"IF(WEEKDAY(CalendarDay)=WeekStartValue,CONCATENATE(\"שבוע \",WEEKNUM(CalendarDay),\"/יום \",CalendarDay-DATE(YEAR(CalendarDay),1,0)),CONCATENATE(\"יום \",CalendarDay-DATE(YEAR(CalendarDay),1,0)))","v":"שבוע 32/יום 217"},{"$f":"IF(WEEKDAY(CalendarDay)=WeekStartValue,CONCATENATE(\"שבוע \",WEEKNUM(CalendarDay),\"/יום \",CalendarDay-DATE(YEAR(CalendarDay),1,0)),CONCATENATE(\"יום \",CalendarDay-DATE(YEAR(CalendarDay),1,0)))","v":"יום 218"}]

{"sheet":"אוג","index":7,"n_rows":20,"n_cols":9,"rows_kept":20,"merged":[[16,2,17,2],[17,4,19,8]]}
[null,"אוג",{"$f":"UPPER(TEXT(WeekStart,\"ddd\"))","v":"יום א"},{"$f":"UPPER(TEXT(D3,\"aaa\"))","v":"יום ב"},"יום ג","יום ד","יום ה","יום ו","שבת"]
[null,{"$f":"CalendarYear","v":2018}]
[null,null,{"$f":"DaysAndWeeks+DATE(CalendarYear,8,1)-WEEKDAY(DATE(CalendarYear,8,1),(WeekStart=\"יום ב\")+1)+1","v":"2018-07-29"},"2018-07-30","2018-07-31","2018-08-01","2018-08-02","2018-08-03","2018-08-04"]
[null,null,{"$f":"IF(DAY(CalendarDay)=1,CONCATENATE(\"שבוע \",WEEKNUM(CalendarDay),\"/יום \",CalendarDay-DATE(YEAR(CalendarDay),1,0)),CONCATENATE(\"יום \",CalendarDay-DATE(YEAR(CalendarDay),1,0)))","v":"יום 210"},"יום 211","יום 212","שבוע 31/יום 213","יום 214","יום 215","יום 216"]
[]
[null,null,{"$f":"DaysAndWeeks+DATE(CalendarYear,8,1)-WEEKDAY(DATE(CalendarYear,8,1),(WeekStart=\"יום ב\")+1)+8","v":"2018-08-05"},"2018-08-06","2018-08-07","2018-08-08","2018-08-09","2018-08-10","2018-08-11"]
[null,null,{"$f":"IF(WEEKDAY(CalendarDay)=WeekStartValue,CONCATENATE(\"שבוע \",WEEKNUM(CalendarDay),\"/יום \",CalendarDay-DATE(YEAR(CalendarDay),1,0)),CONCATENATE(\"יום \",CalendarDay-DATE(YEAR(CalendarDay),1,0)))","v":"שבוע 32/יום 217"},{"$f":"IF(WEEKDAY(CalendarDay)=WeekStartValue,CONCATENATE(\"שבוע \",WEEKNUM(CalendarDay),\"/יום \",CalendarDay-DATE(YEAR(CalendarDay),1,0)),CONCATENATE(\"יום \",CalendarDay-DATE(YEAR(CalendarDay),1,0)))","v":"יום 218"},{"$f":"IF(WEEKDAY(CalendarDay)=WeekStartValue,CONCATENATE(\"שבוע \",WEEKNUM(CalendarDay),\"/יום \",CalendarDay-DATE(YEAR(CalendarDay),1,0)),CONCATENATE(\"יום \",CalendarDay-DATE(YEAR(CalendarDay),1,0)))","v":"יום 219"},{"$f":"IF(WEEKDAY(CalendarDay)=WeekStartValue,CONCATENATE(\"שבוע \",WEEKNUM(CalendarDay),\"/יום \",CalendarDay-DATE(YEAR(CalendarDay),1,0)),CONCATENATE(\"יום \",CalendarDay-DATE(YEAR(CalendarDay),1,0)))","v":"יום 220"},{"$f":"IF(WEEKDAY(CalendarDay)=WeekStartValue,CONCATENATE(\"שבוע \",WEEKNUM(CalendarDay),\"/יום \",CalendarDay-DATE(YEAR(CalendarDay),1,0)),CONCATENATE(\"יום \",CalendarDay-DATE(YEAR(CalendarDay),1,0)))","v":"יום 221"},{"$f":"IF(WEEKDAY(CalendarDay)=WeekStartValue,CONCATENATE(\"שבוע \",WEEKNUM(CalendarDay),\"/יום \",CalendarDay-DATE(YEAR(CalendarDay),1,0)),CONCATENATE(\"יום \",CalendarDay-DATE(YEAR(CalendarDay),1,0)))","v":"יום 222"},{"$f":"IF(WEEKDAY(CalendarDay)=WeekStartValue,CONCATENATE(\"שבוע \",WEEKNUM(CalendarDay),\"/יום \",CalendarDay-DATE(YEAR(CalendarDay),1,0)),CONCATENATE(\"יום \",CalendarDay-DATE(YEAR(CalendarDay),1,0)))","v":"יום 223"}]
[]
[null,null,{"$f":"DaysAndWeeks+DATE(CalendarYear,8,1)-WEEKDAY(DATE(CalendarYear,8,1),(WeekStart=\"יום ב\")+1)+15","v":"2018-08-12"},"2018-08-13","2018-08-14","2018-08-15","2018-08-16","2018-08-17","2018-08-18"]
[null,null,{"$f":"IF(WEEKDAY(CalendarDay)=WeekStartValue,CONCATENATE(\"שבוע \",WEEKNUM(CalendarDay),\"/יום \",CalendarDay-DATE(YEAR(CalendarDay),1,0)),CONCATENATE(\"יום \",CalendarDay-DATE(YEAR(CalendarDay),1,0)))","v":"שבוע 33/יום 224"},{"$f":"IF(WEEKDAY(CalendarDay)=WeekStartValue,CONCATENATE(\"שבוע \",WEEKNUM(CalendarDay),\"/יום \",CalendarDay-DATE(YEAR(CalendarDay),1,0)),CONCATENATE(\"יום \",CalendarDay-DATE(YEAR(CalendarDay),1,0)))","v":"יום 225"},{"$f":"IF(WEEKDAY(CalendarDay)=WeekStartValue,CONCATENATE(\"שבוע \",WEEKNUM(CalendarDay),\"/יום \",CalendarDay-DATE(YEAR(CalendarDay),1,0)),CONCATENATE(\"יום \",CalendarDay-DATE(YEAR(CalendarDay),1,0)))","v":"יום 226"},{"$f":"IF(WEEKDAY(CalendarDay)=WeekStartValue,CONCATENATE(\"שבוע \",WEEKNUM(CalendarDay),\"/יום \",CalendarDay-DATE(YEAR(CalendarDay),1,0)),CONCATENATE(\"יום \",CalendarDay-DATE(YEAR(CalendarDay),1,0)))","v":"יום 227"},{"$f":"IF(WEEKDAY(CalendarDay)=WeekStartValue,CONCATENATE(\"שבוע \",WEEKNUM(CalendarDay),\"/יום \",CalendarDay-DATE(YEAR(CalendarDay),1,0)),CONCATENATE(\"יום \",CalendarDay-DATE(YEAR(CalendarDay),1,0)))","v":"יום 228"},{"$f":"IF(WEEKDAY(CalendarDay)=WeekStartValue,CONCATENATE(\"שבוע \",WEEKNUM(CalendarDay),\"/יום \",CalendarDay-DATE(YEAR(CalendarDay),1,0)),CONCATENATE(\"יום \",CalendarDay-DATE(YEAR(CalendarDay),1,0)))","v":"יום 229"},{"$f":"IF(WEEKDAY(CalendarDay)=WeekStartValue,CONCATENATE(\"שבוע \",WEEKNUM(CalendarDay),\"/יום \",CalendarDay-DATE(YEAR(CalendarDay),1,0)),CONCATENATE(\"יום \",CalendarDay-DATE(YEAR(CalendarDay),1,0)))","v":"יום 230"}]
[]
[null,null,{"$f":"DaysAndWeeks+DATE(CalendarYear,8,1)-WEEKDAY(DATE(CalendarYear,8,1),(WeekStart=\"יום ב\")+1)+22","v":"2018-08-19"},"2018-08-20","2018-08-21","2018-08-22","2018-08-23","2018-08-24","2018-08-25"]
[null,null,{"$f":"IF(WEEKDAY(CalendarDay)=WeekStartValue,CONCATENATE(\"שבוע \",WEEKNUM(CalendarDay),\"/יום \",CalendarDay-DATE(YEAR(CalendarDay),1,0)),CONCATENATE(\"יום \",CalendarDay-DATE(YEAR(CalendarDay),1,0)))","v":"שבוע 34/יום 231"},{"$f":"IF(WEEKDAY(CalendarDay)=WeekStartValue,CONCATENATE(\"שבוע \",WEEKNUM(CalendarDay),\"/יום \",CalendarDay-DATE(YEAR(CalendarDay),1,0)),CONCATENATE(\"יום \",CalendarDay-DATE(YEAR(CalendarDay),1,0)))","v":"יום 232"},{"$f":"IF(WEEKDAY(CalendarDay)=WeekStartValue,CONCATENATE(\"שבוע \",WEEKNUM(CalendarDay),\"/יום \",CalendarDay-DATE(YEAR(CalendarDay),1,0)),CONCATENATE(\"יום \",CalendarDay-DATE(YEAR(CalendarDay),1,0)))","v":"יום 233"},{"$f":"IF(WEEKDAY(CalendarDay)=WeekStartValue,CONCATENATE(\"שבוע \",WEEKNUM(CalendarDay),\"/יום \",CalendarDay-DATE(YEAR(CalendarDay),1,0)),CONCATENATE(\"יום \",CalendarDay-DATE(YEAR(CalendarDay),1,0)))","v":"יום 234"},{"$f":"IF(WEEKDAY(CalendarDay)=WeekStartValue,CONCATENATE(\"שבוע \",WEEKNUM(CalendarDay),\"/יום \",CalendarDay-DATE(YEAR(CalendarDay),1,0)),CONCATENATE(\"יום \",CalendarDay-DATE(YEAR(CalendarDay),1,0)))","v":"יום 235"},{"$f":"IF(WEEKDAY(CalendarDay)=WeekStartValue,CONCATENATE(\"שבוע \",WEEKNUM(CalendarDay),\"/יום \",CalendarDay-DATE(YEAR(CalendarDay),1,0)),CONCATENATE(\"יום \",CalendarDay-DATE(YEAR(CalendarDay),1,0)))","v":"יום 236"},{"$f":"IF(WEEKDAY(CalendarDay)=WeekStartValue,CONCATENATE(\"שבוע \",WEEKNUM(CalendarDay),\"/יום \",CalendarDay-DATE(YEAR(CalendarDay),1,0)),CONCATENATE(\"יום \",CalendarDay-DATE(YEAR(CalendarDay),1,0)))","v":"יום 237"}]
[]
[null,null,{"$f":"DaysAndWeeks+DATE(CalendarYear,8,1)-WEEKDAY(DATE(CalendarYear,8,1),(WeekStart=\"יום ב\")+1)+29","v":"2018-08-26"},"2018-08-27","2018-08-28","2018-08-29","2018-08-30","2018-08-31","2018-09-01"]
[null,null,{"$f":"IF(WEEKDAY(CalendarDay)=WeekStartValue,CONCATENATE(\"שבוע \",WEEKNUM(CalendarDay),\"/יום \",CalendarDay-DATE(YEAR(CalendarDay),1,0)),CONCATENATE(\"יום \",CalendarDay-DATE(YEAR(CalendarDay),1,0)))","v":"שבוע 35/יום 238"},{"$f":"IF(WEEKDAY(CalendarDay)=WeekStartValue,CONCATENATE(\"שבוע \",WEEKNUM(CalendarDay),\"/יום \",CalendarDay-DATE(YEAR(CalendarDay),1,0)),CONCATENATE(\"יום \",CalendarDay-DATE(YEAR(CalendarDay),1,0)))","v":"יום 239"},{"$f":"IF(WEEKDAY(CalendarDay)=WeekStartValue,CONCATENATE(\"שבוע \",WEEKNUM(CalendarDay),\"/יום \",CalendarDay-DATE(YEAR(CalendarDay),1,0)),CONCATENATE(\"יום \",CalendarDay-DATE(YEAR(CalendarDay),1,0)))","v":"יום 240"},{"$f":"IF(WEEKDAY(CalendarDay)=WeekStartValue,CONCATENATE(\"שבוע \",WEEKNUM(CalendarDay),\"/יום \",CalendarDay-DATE(YEAR(CalendarDay),1,0)),CONCATENATE(\"יום \",CalendarDay-DATE(YEAR(CalendarDay),1,0)))","v":"יום 241"},{"$f":"IF(WEEKDAY(CalendarDay)=WeekStartValue,CONCATENATE(\"שבוע \",WEEKNUM(CalendarDay),\"/יום \",CalendarDay-DATE(YEAR(CalendarDay),1,0)),CONCATENATE(\"יום \",CalendarDay-DATE(YEAR(CalendarDay),1,0)))","v":"יום 242"},{"$f":"IF(WEEKDAY(CalendarDay)=WeekStartValue,CONCATENATE(\"שבוע \",WEEKNUM(CalendarDay),\"/יום \",CalendarDay-DATE(YEAR(CalendarDay),1,0)),CONCATENATE(\"יום \",CalendarDay-DATE(YEAR(CalendarDay),1,0)))","v":"יום 243"},{"$f":"IF(WEEKDAY(CalendarDay)=WeekStartValue,CONCATENATE(\"שבוע \",WEEKNUM(CalendarDay),\"/יום \",CalendarDay-DATE(YEAR(CalendarDay),1,0)),CONCATENATE(\"יום \",CalendarDay-DATE(YEAR(CalendarDay),1,0)))","v":"יום 244"}]
[{"$nulls":4},"הערות"]
[]
[null,null,{"$f":"DaysAndWeeks+DATE(CalendarYear,8,1)-WEEKDAY(DATE(CalendarYear,8,1),(WeekStart=\"יום ב\")+1)+36","v":"2018-09-02"},"2018-09-03"]
[null,null,{"$f":"IF(WEEKDAY(CalendarDay)=WeekStartValue,CONCATENATE(\"שבוע \",WEEKNUM(CalendarDay),\"/יום \",CalendarDay-DATE(YEAR(CalendarDay),1,0)),CONCATENATE(\"יום \",CalendarDay-DATE(YEAR(CalendarDay),1,0)))","v":"שבוע 36/יום 245"},{"$f":"IF(WEEKDAY(CalendarDay)=WeekStartValue,CONCATENATE(\"שבוע \",WEEKNUM(CalendarDay),\"/יום \",CalendarDay-DATE(YEAR(CalendarDay),1,0)),CONCATENATE(\"יום \",CalendarDay-DATE(YEAR(CalendarDay),1,0)))","v":"יום 246"}]

{"sheet":"ספט","index":8,"n_rows":20,"n_cols":9,"rows_kept":20,"merged":[[16,2,17,2],[17,4,19,8]]}
[null,"ספט",{"$f":"UPPER(TEXT(WeekStart,\"ddd\"))","v":"יום א"},{"$f":"UPPER(TEXT(D3,\"aaa\"))","v":"יום ב"},"יום ג","יום ד","יום ה","יום ו","שבת"]
[null,{"$f":"CalendarYear","v":2018}]
[null,null,{"$f":"DaysAndWeeks+DATE(CalendarYear,9,1)-WEEKDAY(DATE(CalendarYear,9,1),(WeekStart=\"יום ב\")+1)+1","v":"2018-08-26"},"2018-08-27","2018-08-28","2018-08-29","2018-08-30","2018-08-31","2018-09-01"]
[null,null,{"$f":"IF(DAY(CalendarDay)=1,CONCATENATE(\"שבוע \",WEEKNUM(CalendarDay),\"/יום \",CalendarDay-DATE(YEAR(CalendarDay),1,0)),CONCATENATE(\"יום \",CalendarDay-DATE(YEAR(CalendarDay),1,0)))","v":"יום 238"},"יום 239","יום 240","יום 241","יום 242","יום 243","שבוע 35/יום 244"]
[]
[null,null,{"$f":"DaysAndWeeks+DATE(CalendarYear,9,1)-WEEKDAY(DATE(CalendarYear,9,1),(WeekStart=\"יום ב\")+1)+8","v":"2018-09-02"},"2018-09-03","2018-09-04","2018-09-05","2018-09-06","2018-09-07","2018-09-08"]
[null,null,{"$f":"IF(WEEKDAY(CalendarDay)=WeekStartValue,CONCATENATE(\"שבוע \",WEEKNUM(CalendarDay),\"/יום \",CalendarDay-DATE(YEAR(CalendarDay),1,0)),CONCATENATE(\"יום \",CalendarDay-DATE(YEAR(CalendarDay),1,0)))","v":"שבוע 36/יום 245"},{"$f":"IF(WEEKDAY(CalendarDay)=WeekStartValue,CONCATENATE(\"שבוע \",WEEKNUM(CalendarDay),\"/יום \",CalendarDay-DATE(YEAR(CalendarDay),1,0)),CONCATENATE(\"יום \",CalendarDay-DATE(YEAR(CalendarDay),1,0)))","v":"יום 246"},{"$f":"IF(WEEKDAY(CalendarDay)=WeekStartValue,CONCATENATE(\"שבוע \",WEEKNUM(CalendarDay),\"/יום \",CalendarDay-DATE(YEAR(CalendarDay),1,0)),CONCATENATE(\"יום \",CalendarDay-DATE(YEAR(CalendarDay),1,0)))","v":"יום 247"},{"$f":"IF(WEEKDAY(CalendarDay)=WeekStartValue,CONCATENATE(\"שבוע \",WEEKNUM(CalendarDay),\"/יום \",CalendarDay-DATE(YEAR(CalendarDay),1,0)),CONCATENATE(\"יום \",CalendarDay-DATE(YEAR(CalendarDay),1,0)))","v":"יום 248"},{"$f":"IF(WEEKDAY(CalendarDay)=WeekStartValue,CONCATENATE(\"שבוע \",WEEKNUM(CalendarDay),\"/יום \",CalendarDay-DATE(YEAR(CalendarDay),1,0)),CONCATENATE(\"יום \",CalendarDay-DATE(YEAR(CalendarDay),1,0)))","v":"יום 249"},{"$f":"IF(WEEKDAY(CalendarDay)=WeekStartValue,CONCATENATE(\"שבוע \",WEEKNUM(CalendarDay),\"/יום \",CalendarDay-DATE(YEAR(CalendarDay),1,0)),CONCATENATE(\"יום \",CalendarDay-DATE(YEAR(CalendarDay),1,0)))","v":"יום 250"},{"$f":"IF(WEEKDAY(CalendarDay)=WeekStartValue,CONCATENATE(\"שבוע \",WEEKNUM(CalendarDay),\"/יום \",CalendarDay-DATE(YEAR(CalendarDay),1,0)),CONCATENATE(\"יום \",CalendarDay-DATE(YEAR(CalendarDay),1,0)))","v":"יום 251"}]
[]
[null,null,{"$f":"DaysAndWeeks+DATE(CalendarYear,9,1)-WEEKDAY(DATE(CalendarYear,9,1),(WeekStart=\"יום ב\")+1)+15","v":"2018-09-09"},"2018-09-10","2018-09-11","2018-09-12","2018-09-13","2018-09-14","2018-09-15"]
[null,null,{"$f":"IF(WEEKDAY(CalendarDay)=WeekStartValue,CONCATENATE(\"שבוע \",WEEKNUM(CalendarDay),\"/יום \",CalendarDay-DATE(YEAR(CalendarDay),1,0)),CONCATENATE(\"יום \",CalendarDay-DATE(YEAR(CalendarDay),1,0)))","v":"שבוע 37/יום 252"},{"$f":"IF(WEEKDAY(CalendarDay)=WeekStartValue,CONCATENATE(\"שבוע \",WEEKNUM(CalendarDay),\"/יום \",CalendarDay-DATE(YEAR(CalendarDay),1,0)),CONCATENATE(\"יום \",CalendarDay-DATE(YEAR(CalendarDay),1,0)))","v":"יום 253"},{"$f":"IF(WEEKDAY(CalendarDay)=WeekStartValue,CONCATENATE(\"שבוע \",WEEKNUM(CalendarDay),\"/יום \",CalendarDay-DATE(YEAR(CalendarDay),1,0)),CONCATENATE(\"יום \",CalendarDay-DATE(YEAR(CalendarDay),1,0)))","v":"יום 254"},{"$f":"IF(WEEKDAY(CalendarDay)=WeekStartValue,CONCATENATE(\"שבוע \",WEEKNUM(CalendarDay),\"/יום \",CalendarDay-DATE(YEAR(CalendarDay),1,0)),CONCATENATE(\"יום \",CalendarDay-DATE(YEAR(CalendarDay),1,0)))","v":"יום 255"},{"$f":"IF(WEEKDAY(CalendarDay)=WeekStartValue,CONCATENATE(\"שבוע \",WEEKNUM(CalendarDay),\"/יום \",CalendarDay-DATE(YEAR(CalendarDay),1,0)),CONCATENATE(\"יום \",CalendarDay-DATE(YEAR(CalendarDay),1,0)))","v":"יום 256"},{"$f":"IF(WEEKDAY(CalendarDay)=WeekStartValue,CONCATENATE(\"שבוע \",WEEKNUM(CalendarDay),\"/יום \",CalendarDay-DATE(YEAR(CalendarDay),1,0)),CONCATENATE(\"יום \",CalendarDay-DATE(YEAR(CalendarDay),1,0)))","v":"יום 257"},{"$f":"IF(WEEKDAY(CalendarDay)=WeekStartValue,CONCATENATE(\"שבוע \",WEEKNUM(CalendarDay),\"/יום \",CalendarDay-DATE(YEAR(CalendarDay),1,0)),CONCATENATE(\"יום \",CalendarDay-DATE(YEAR(CalendarDay),1,0)))","v":"יום 258"}]
[]
[null,null,{"$f":"DaysAndWeeks+DATE(CalendarYear,9,1)-WEEKDAY(DATE(CalendarYear,9,1),(WeekStart=\"יום ב\")+1)+22","v":"2018-09-16"},"2018-09-17","2018-09-18","2018-09-19","2018-09-20","2018-09-21","2018-09-22"]
[null,null,{"$f":"IF(WEEKDAY(CalendarDay)=WeekStartValue,CONCATENATE(\"שבוע \",WEEKNUM(CalendarDay),\"/יום \",CalendarDay-DATE(YEAR(CalendarDay),1,0)),CONCATENATE(\"יום \",CalendarDay-DATE(YEAR(CalendarDay),1,0)))","v":"שבוע 38/יום 259"},{"$f":"IF(WEEKDAY(CalendarDay)=WeekStartValue,CONCATENATE(\"שבוע \",WEEKNUM(CalendarDay),\"/יום \",CalendarDay-DATE(YEAR(CalendarDay),1,0)),CONCATENATE(\"יום \",CalendarDay-DATE(YEAR(CalendarDay),1,0)))","v":"יום 260"},{"$f":"IF(WEEKDAY(CalendarDay)=WeekStartValue,CONCATENATE(\"שבוע \",WEEKNUM(CalendarDay),\"/יום \",CalendarDay-DATE(YEAR(CalendarDay),1,0)),CONCATENATE(\"יום \",CalendarDay-DATE(YEAR(CalendarDay),1,0)))","v":"יום 261"},{"$f":"IF(WEEKDAY(CalendarDay)=WeekStartValue,CONCATENATE(\"שבוע \",WEEKNUM(CalendarDay),\"/יום \",CalendarDay-DATE(YEAR(CalendarDay),1,0)),CONCATENATE(\"יום \",CalendarDay-DATE(YEAR(CalendarDay),1,0)))","v":"יום 262"},{"$f":"IF(WEEKDAY(CalendarDay)=WeekStartValue,CONCATENATE(\"שבוע \",WEEKNUM(CalendarDay),\"/יום \",CalendarDay-DATE(YEAR(CalendarDay),1,0)),CONCATENATE(\"יום \",CalendarDay-DATE(YEAR(CalendarDay),1,0)))","v":"יום 263"},{"$f":"IF(WEEKDAY(CalendarDay)=WeekStartValue,CONCATENATE(\"שבוע \",WEEKNUM(CalendarDay),\"/יום \",CalendarDay-DATE(YEAR(CalendarDay),1,0)),CONCATENATE(\"יום \",CalendarDay-DATE(YEAR(CalendarDay),1,0)))","v":"יום 264"},{"$f":"IF(WEEKDAY(CalendarDay)=WeekStartValue,CONCATENATE(\"שבוע \",WEEKNUM(CalendarDay),\"/יום \",CalendarDay-DATE(YEAR(CalendarDay),1,0)),CONCATENATE(\"יום \",CalendarDay-DATE(YEAR(CalendarDay),1,0)))","v":"יום 265"}]
[]
[null,null,{"$f":"DaysAndWeeks+DATE(CalendarYear,9,1)-WEEKDAY(DATE(CalendarYear,9,1),(WeekStart=\"יום ב\")+1)+29","v":"2018-09-23"},"2018-09-24","2018-09-25","2018-09-26","2018-09-27","2018-09-28","2018-09-29"]
[null,null,{"$f":"IF(WEEKDAY(CalendarDay)=WeekStartValue,CONCATENATE(\"שבוע \",WEEKNUM(CalendarDay),\"/יום \",CalendarDay-DATE(YEAR(CalendarDay),1,0)),CONCATENATE(\"יום \",CalendarDay-DATE(YEAR(CalendarDay),1,0)))","v":"שבוע 39/יום 266"},{"$f":"IF(WEEKDAY(CalendarDay)=WeekStartValue,CONCATENATE(\"שבוע \",WEEKNUM(CalendarDay),\"/יום \",CalendarDay-DATE(YEAR(CalendarDay),1,0)),CONCATENATE(\"יום \",CalendarDay-DATE(YEAR(CalendarDay),1,0)))","v":"יום 267"},{"$f":"IF(WEEKDAY(CalendarDay)=WeekStartValue,CONCATENATE(\"שבוע \",WEEKNUM(CalendarDay),\"/יום \",CalendarDay-DATE(YEAR(CalendarDay),1,0)),CONCATENATE(\"יום \",CalendarDay-DATE(YEAR(CalendarDay),1,0)))","v":"יום 268"},{"$f":"IF(WEEKDAY(CalendarDay)=WeekStartValue,CONCATENATE(\"שבוע \",WEEKNUM(CalendarDay),\"/יום \",CalendarDay-DATE(YEAR(CalendarDay),1,0)),CONCATENATE(\"יום \",CalendarDay-DATE(YEAR(CalendarDay),1,0)))","v":"יום 269"},{"$f":"IF(WEEKDAY(CalendarDay)=WeekStartValue,CONCATENATE(\"שבוע \",WEEKNUM(CalendarDay),\"/יום \",CalendarDay-DATE(YEAR(CalendarDay),1,0)),CONCATENATE(\"יום \",CalendarDay-DATE(YEAR(CalendarDay),1,0)))","v":"יום 270"},{"$f":"IF(WEEKDAY(CalendarDay)=WeekStartValue,CONCATENATE(\"שבוע \",WEEKNUM(CalendarDay),\"/יום \",CalendarDay-DATE(YEAR(CalendarDay),1,0)),CONCATENATE(\"יום \",CalendarDay-DATE(YEAR(CalendarDay),1,0)))","v":"יום 271"},{"$f":"IF(WEEKDAY(CalendarDay)=WeekStartValue,CONCATENATE(\"שבוע \",WEEKNUM(CalendarDay),\"/יום \",CalendarDay-DATE(YEAR(CalendarDay),1,0)),CONCATENATE(\"יום \",CalendarDay-DATE(YEAR(CalendarDay),1,0)))","v":"יום 272"}]
[{"$nulls":4},"הערות"]
[]
[null,null,{"$f":"DaysAndWeeks+DATE(CalendarYear,9,1)-WEEKDAY(DATE(CalendarYear,9,1),(WeekStart=\"יום ב\")+1)+36","v":"2018-09-30"},"2018-10-01"]
[null,null,{"$f":"IF(WEEKDAY(CalendarDay)=WeekStartValue,CONCATENATE(\"שבוע \",WEEKNUM(CalendarDay),\"/יום \",CalendarDay-DATE(YEAR(CalendarDay),1,0)),CONCATENATE(\"יום \",CalendarDay-DATE(YEAR(CalendarDay),1,0)))","v":"שבוע 40/יום 273"},{"$f":"IF(WEEKDAY(CalendarDay)=WeekStartValue,CONCATENATE(\"שבוע \",WEEKNUM(CalendarDay),\"/יום \",CalendarDay-DATE(YEAR(CalendarDay),1,0)),CONCATENATE(\"יום \",CalendarDay-DATE(YEAR(CalendarDay),1,0)))","v":"יום 274"}]

{"sheet":"אוק","index":9,"n_rows":20,"n_cols":9,"rows_kept":20,"merged":[[16,2,17,2],[17,4,19,8]]}
[null,"אוק",{"$f":"UPPER(TEXT(WeekStart,\"ddd\"))","v":"יום א"},{"$f":"UPPER(TEXT(D3,\"aaa\"))","v":"יום ב"},"יום ג","יום ד","יום ה","יום ו","שבת"]
[null,{"$f":"CalendarYear","v":2018}]
[null,null,{"$f":"DaysAndWeeks+DATE(CalendarYear,10,1)-WEEKDAY(DATE(CalendarYear,10,1),(WeekStart=\"יום ב\")+1)+1","v":"2018-09-30"},"2018-10-01","2018-10-02","2018-10-03","2018-10-04","2018-10-05","2018-10-06"]
[null,null,{"$f":"IF(DAY(CalendarDay)=1,CONCATENATE(\"שבוע \",WEEKNUM(CalendarDay),\"/יום \",CalendarDay-DATE(YEAR(CalendarDay),1,0)),CONCATENATE(\"יום \",CalendarDay-DATE(YEAR(CalendarDay),1,0)))","v":"יום 273"},"שבוע 40/יום 274","יום 275","יום 276","יום 277","יום 278","יום 279"]
[]
[null,null,{"$f":"DaysAndWeeks+DATE(CalendarYear,10,1)-WEEKDAY(DATE(CalendarYear,10,1),(WeekStart=\"יום ב\")+1)+8","v":"2018-10-07"},"2018-10-08","2018-10-09","2018-10-10","2018-10-11","2018-10-12","2018-10-13"]
[null,null,{"$f":"IF(WEEKDAY(CalendarDay)=WeekStartValue,CONCATENATE(\"שבוע \",WEEKNUM(CalendarDay),\"/יום \",CalendarDay-DATE(YEAR(CalendarDay),1,0)),CONCATENATE(\"יום \",CalendarDay-DATE(YEAR(CalendarDay),1,0)))","v":"שבוע 41/יום 280"},{"$f":"IF(WEEKDAY(CalendarDay)=WeekStartValue,CONCATENATE(\"שבוע \",WEEKNUM(CalendarDay),\"/יום \",CalendarDay-DATE(YEAR(CalendarDay),1,0)),CONCATENATE(\"יום \",CalendarDay-DATE(YEAR(CalendarDay),1,0)))","v":"יום 281"},{"$f":"IF(WEEKDAY(CalendarDay)=WeekStartValue,CONCATENATE(\"שבוע \",WEEKNUM(CalendarDay),\"/יום \",CalendarDay-DATE(YEAR(CalendarDay),1,0)),CONCATENATE(\"יום \",CalendarDay-DATE(YEAR(CalendarDay),1,0)))","v":"יום 282"},{"$f":"IF(WEEKDAY(CalendarDay)=WeekStartValue,CONCATENATE(\"שבוע \",WEEKNUM(CalendarDay),\"/יום \",CalendarDay-DATE(YEAR(CalendarDay),1,0)),CONCATENATE(\"יום \",CalendarDay-DATE(YEAR(CalendarDay),1,0)))","v":"יום 283"},{"$f":"IF(WEEKDAY(CalendarDay)=WeekStartValue,CONCATENATE(\"שבוע \",WEEKNUM(CalendarDay),\"/יום \",CalendarDay-DATE(YEAR(CalendarDay),1,0)),CONCATENATE(\"יום \",CalendarDay-DATE(YEAR(CalendarDay),1,0)))","v":"יום 284"},{"$f":"IF(WEEKDAY(CalendarDay)=WeekStartValue,CONCATENATE(\"שבוע \",WEEKNUM(CalendarDay),\"/יום \",CalendarDay-DATE(YEAR(CalendarDay),1,0)),CONCATENATE(\"יום \",CalendarDay-DATE(YEAR(CalendarDay),1,0)))","v":"יום 285"},{"$f":"IF(WEEKDAY(CalendarDay)=WeekStartValue,CONCATENATE(\"שבוע \",WEEKNUM(CalendarDay),\"/יום \",CalendarDay-DATE(YEAR(CalendarDay),1,0)),CONCATENATE(\"יום \",CalendarDay-DATE(YEAR(CalendarDay),1,0)))","v":"יום 286"}]
[]
[null,null,{"$f":"DaysAndWeeks+DATE(CalendarYear,10,1)-WEEKDAY(DATE(CalendarYear,10,1),(WeekStart=\"יום ב\")+1)+15","v":"2018-10-14"},"2018-10-15","2018-10-16","2018-10-17","2018-10-18","2018-10-19","2018-10-20"]
[null,null,{"$f":"IF(WEEKDAY(CalendarDay)=WeekStartValue,CONCATENATE(\"שבוע \",WEEKNUM(CalendarDay),\"/יום \",CalendarDay-DATE(YEAR(CalendarDay),1,0)),CONCATENATE(\"יום \",CalendarDay-DATE(YEAR(CalendarDay),1,0)))","v":"שבוע 42/יום 287"},{"$f":"IF(WEEKDAY(CalendarDay)=WeekStartValue,CONCATENATE(\"שבוע \",WEEKNUM(CalendarDay),\"/יום \",CalendarDay-DATE(YEAR(CalendarDay),1,0)),CONCATENATE(\"יום \",CalendarDay-DATE(YEAR(CalendarDay),1,0)))","v":"יום 288"},{"$f":"IF(WEEKDAY(CalendarDay)=WeekStartValue,CONCATENATE(\"שבוע \",WEEKNUM(CalendarDay),\"/יום \",CalendarDay-DATE(YEAR(CalendarDay),1,0)),CONCATENATE(\"יום \",CalendarDay-DATE(YEAR(CalendarDay),1,0)))","v":"יום 289"},{"$f":"IF(WEEKDAY(CalendarDay)=WeekStartValue,CONCATENATE(\"שבוע \",WEEKNUM(CalendarDay),\"/יום \",CalendarDay-DATE(YEAR(CalendarDay),1,0)),CONCATENATE(\"יום \",CalendarDay-DATE(YEAR(CalendarDay),1,0)))","v":"יום 290"},{"$f":"IF(WEEKDAY(CalendarDay)=WeekStartValue,CONCATENATE(\"שבוע \",WEEKNUM(CalendarDay),\"/יום \",CalendarDay-DATE(YEAR(CalendarDay),1,0)),CONCATENATE(\"יום \",CalendarDay-DATE(YEAR(CalendarDay),1,0)))","v":"יום 291"},{"$f":"IF(WEEKDAY(CalendarDay)=WeekStartValue,CONCATENATE(\"שבוע \",WEEKNUM(CalendarDay),\"/יום \",CalendarDay-DATE(YEAR(CalendarDay),1,0)),CONCATENATE(\"יום \",CalendarDay-DATE(YEAR(CalendarDay),1,0)))","v":"יום 292"},{"$f":"IF(WEEKDAY(CalendarDay)=WeekStartValue,CONCATENATE(\"שבוע \",WEEKNUM(CalendarDay),\"/יום \",CalendarDay-DATE(YEAR(CalendarDay),1,0)),CONCATENATE(\"יום \",CalendarDay-DATE(YEAR(CalendarDay),1,0)))","v":"יום 293"}]
[]
[null,null,{"$f":"DaysAndWeeks+DATE(CalendarYear,10,1)-WEEKDAY(DATE(CalendarYear,10,1),(WeekStart=\"יום ב\")+1)+22","v":"2018-10-21"},"2018-10-22","2018-10-23","2018-10-24","2018-10-25","2018-10-26","2018-10-27"]
[null,null,{"$f":"IF(WEEKDAY(CalendarDay)=WeekStartValue,CONCATENATE(\"שבוע \",WEEKNUM(CalendarDay),\"/יום \",CalendarDay-DATE(YEAR(CalendarDay),1,0)),CONCATENATE(\"יום \",CalendarDay-DATE(YEAR(CalendarDay),1,0)))","v":"שבוע 43/יום 294"},{"$f":"IF(WEEKDAY(CalendarDay)=WeekStartValue,CONCATENATE(\"שבוע \",WEEKNUM(CalendarDay),\"/יום \",CalendarDay-DATE(YEAR(CalendarDay),1,0)),CONCATENATE(\"יום \",CalendarDay-DATE(YEAR(CalendarDay),1,0)))","v":"יום 295"},{"$f":"IF(WEEKDAY(CalendarDay)=WeekStartValue,CONCATENATE(\"שבוע \",WEEKNUM(CalendarDay),\"/יום \",CalendarDay-DATE(YEAR(CalendarDay),1,0)),CONCATENATE(\"יום \",CalendarDay-DATE(YEAR(CalendarDay),1,0)))","v":"יום 296"},{"$f":"IF(WEEKDAY(CalendarDay)=WeekStartValue,CONCATENATE(\"שבוע \",WEEKNUM(CalendarDay),\"/יום \",CalendarDay-DATE(YEAR(CalendarDay),1,0)),CONCATENATE(\"יום \",CalendarDay-DATE(YEAR(CalendarDay),1,0)))","v":"יום 297"},{"$f":"IF(WEEKDAY(CalendarDay)=WeekStartValue,CONCATENATE(\"שבוע \",WEEKNUM(CalendarDay),\"/יום \",CalendarDay-DATE(YEAR(CalendarDay),1,0)),CONCATENATE(\"יום \",CalendarDay-DATE(YEAR(CalendarDay),1,0)))","v":"יום 298"},{"$f":"IF(WEEKDAY(CalendarDay)=WeekStartValue,CONCATENATE(\"שבוע \",WEEKNUM(CalendarDay),\"/יום \",CalendarDay-DATE(YEAR(CalendarDay),1,0)),CONCATENATE(\"יום \",CalendarDay-DATE(YEAR(CalendarDay),1,0)))","v":"יום 299"},{"$f":"IF(WEEKDAY(CalendarDay)=WeekStartValue,CONCATENATE(\"שבוע \",WEEKNUM(CalendarDay),\"/יום \",CalendarDay-DATE(YEAR(CalendarDay),1,0)),CONCATENATE(\"יום \",CalendarDay-DATE(YEAR(CalendarDay),1,0)))","v":"יום 300"}]
[]
[null,null,{"$f":"DaysAndWeeks+DATE(CalendarYear,10,1)-WEEKDAY(DATE(CalendarYear,10,1),(WeekStart=\"יום ב\")+1)+29","v":"2018-10-28"},"2018-10-29","2018-10-30","2018-10-31","2018-11-01","2018-11-02","2018-11-03"]
[null,null,{"$f":"IF(WEEKDAY(CalendarDay)=WeekStartValue,CONCATENATE(\"שבוע \",WEEKNUM(CalendarDay),\"/יום \",CalendarDay-DATE(YEAR(CalendarDay),1,0)),CONCATENATE(\"יום \",CalendarDay-DATE(YEAR(CalendarDay),1,0)))","v":"שבוע 44/יום 301"},{"$f":"IF(WEEKDAY(CalendarDay)=WeekStartValue,CONCATENATE(\"שבוע \",WEEKNUM(CalendarDay),\"/יום \",CalendarDay-DATE(YEAR(CalendarDay),1,0)),CONCATENATE(\"יום \",CalendarDay-DATE(YEAR(CalendarDay),1,0)))","v":"יום 302"},{"$f":"IF(WEEKDAY(CalendarDay)=WeekStartValue,CONCATENATE(\"שבוע \",WEEKNUM(CalendarDay),\"/יום \",CalendarDay-DATE(YEAR(CalendarDay),1,0)),CONCATENATE(\"יום \",CalendarDay-DATE(YEAR(CalendarDay),1,0)))","v":"יום 303"},{"$f":"IF(WEEKDAY(CalendarDay)=WeekStartValue,CONCATENATE(\"שבוע \",WEEKNUM(CalendarDay),\"/יום \",CalendarDay-DATE(YEAR(CalendarDay),1,0)),CONCATENATE(\"יום \",CalendarDay-DATE(YEAR(CalendarDay),1,0)))","v":"יום 304"},{"$f":"IF(WEEKDAY(CalendarDay)=WeekStartValue,CONCATENATE(\"שבוע \",WEEKNUM(CalendarDay),\"/יום \",CalendarDay-DATE(YEAR(CalendarDay),1,0)),CONCATENATE(\"יום \",CalendarDay-DATE(YEAR(CalendarDay),1,0)))","v":"יום 305"},{"$f":"IF(WEEKDAY(CalendarDay)=WeekStartValue,CONCATENATE(\"שבוע \",WEEKNUM(CalendarDay),\"/יום \",CalendarDay-DATE(YEAR(CalendarDay),1,0)),CONCATENATE(\"יום \",CalendarDay-DATE(YEAR(CalendarDay),1,0)))","v":"יום 306"},{"$f":"IF(WEEKDAY(CalendarDay)=WeekStartValue,CONCATENATE(\"שבוע \",WEEKNUM(CalendarDay),\"/יום \",CalendarDay-DATE(YEAR(CalendarDay),1,0)),CONCATENATE(\"יום \",CalendarDay-DATE(YEAR(CalendarDay),1,0)))","v":"יום 307"}]
[{"$nulls":4},"הערות"]
[]
[null,null,{"$f":"DaysAndWeeks+DATE(CalendarYear,10,1)-WEEKDAY(DATE(CalendarYear,10,1),(WeekStart=\"יום ב\")+1)+36","v":"2018-11-04"},"2018-11-05"]
[null,null,{"$f":"IF(WEEKDAY(CalendarDay)=WeekStartValue,CONCATENATE(\"שבוע \",WEEKNUM(CalendarDay),\"/יום \",CalendarDay-DATE(YEAR(CalendarDay),1,0)),CONCATENATE(\"יום \",CalendarDay-DATE(YEAR(CalendarDay),1,0)))","v":"שבוע 45/יום 308"},{"$f":"IF(WEEKDAY(CalendarDay)=WeekStartValue,CONCATENATE(\"שבוע \",WEEKNUM(CalendarDay),\"/יום \",CalendarDay-DATE(YEAR(CalendarDay),1,0)),CONCATENATE(\"יום \",CalendarDay-DATE(YEAR(CalendarDay),1,0)))","v":"יום 309"}]

{"sheet":"נוב","index":10,"n_rows":20,"n_cols":9,"rows_kept":20,"merged":[[16,2,17,2],[17,4,19,8]]}
[null,"נוב",{"$f":"UPPER(TEXT(WeekStart,\"ddd\"))","v":"יום א"},{"$f":"UPPER(TEXT(D3,\"aaa\"))","v":"יום ב"},"יום ג","יום ד","יום ה","יום ו","שבת"]
[null,{"$f":"CalendarYear","v":2018}]
[null,null,{"$f":"DaysAndWeeks+DATE(CalendarYear,11,1)-WEEKDAY(DATE(CalendarYear,11,1),(WeekStart=\"יום ב\")+1)+1","v":"2018-10-28"},"2018-10-29","2018-10-30","2018-10-31","2018-11-01","2018-11-02","2018-11-03"]
[null,null,{"$f":"IF(DAY(CalendarDay)=1,CONCATENATE(\"שבוע \",WEEKNUM(CalendarDay),\"/יום \",CalendarDay-DATE(YEAR(CalendarDay),1,0)),CONCATENATE(\"יום \",CalendarDay-DATE(YEAR(CalendarDay),1,0)))","v":"יום 301"},"יום 302","יום 303","יום 304","שבוע 44/יום 305","יום 306","יום 307"]
[]
[null,null,{"$f":"DaysAndWeeks+DATE(CalendarYear,11,1)-WEEKDAY(DATE(CalendarYear,11,1),(WeekStart=\"יום ב\")+1)+8","v":"2018-11-04"},"2018-11-05","2018-11-06","2018-11-07","2018-11-08","2018-11-09","2018-11-10"]
[null,null,{"$f":"IF(WEEKDAY(CalendarDay)=WeekStartValue,CONCATENATE(\"שבוע \",WEEKNUM(CalendarDay),\"/יום \",CalendarDay-DATE(YEAR(CalendarDay),1,0)),CONCATENATE(\"יום \",CalendarDay-DATE(YEAR(CalendarDay),1,0)))","v":"שבוע 45/יום 308"},{"$f":"IF(WEEKDAY(CalendarDay)=WeekStartValue,CONCATENATE(\"שבוע \",WEEKNUM(CalendarDay),\"/יום \",CalendarDay-DATE(YEAR(CalendarDay),1,0)),CONCATENATE(\"יום \",CalendarDay-DATE(YEAR(CalendarDay),1,0)))","v":"יום 309"},{"$f":"IF(WEEKDAY(CalendarDay)=WeekStartValue,CONCATENATE(\"שבוע \",WEEKNUM(CalendarDay),\"/יום \",CalendarDay-DATE(YEAR(CalendarDay),1,0)),CONCATENATE(\"יום \",CalendarDay-DATE(YEAR(CalendarDay),1,0)))","v":"יום 310"},{"$f":"IF(WEEKDAY(CalendarDay)=WeekStartValue,CONCATENATE(\"שבוע \",WEEKNUM(CalendarDay),\"/יום \",CalendarDay-DATE(YEAR(CalendarDay),1,0)),CONCATENATE(\"יום \",CalendarDay-DATE(YEAR(CalendarDay),1,0)))","v":"יום 311"},{"$f":"IF(WEEKDAY(CalendarDay)=WeekStartValue,CONCATENATE(\"שבוע \",WEEKNUM(CalendarDay),\"/יום \",CalendarDay-DATE(YEAR(CalendarDay),1,0)),CONCATENATE(\"יום \",CalendarDay-DATE(YEAR(CalendarDay),1,0)))","v":"יום 312"},{"$f":"IF(WEEKDAY(CalendarDay)=WeekStartValue,CONCATENATE(\"שבוע \",WEEKNUM(CalendarDay),\"/יום \",CalendarDay-DATE(YEAR(CalendarDay),1,0)),CONCATENATE(\"יום \",CalendarDay-DATE(YEAR(CalendarDay),1,0)))","v":"יום 313"},{"$f":"IF(WEEKDAY(CalendarDay)=WeekStartValue,CONCATENATE(\"שבוע \",WEEKNUM(CalendarDay),\"/יום \",CalendarDay-DATE(YEAR(CalendarDay),1,0)),CONCATENATE(\"יום \",CalendarDay-DATE(YEAR(CalendarDay),1,0)))","v":"יום 314"}]
[]
[null,null,{"$f":"DaysAndWeeks+DATE(CalendarYear,11,1)-WEEKDAY(DATE(CalendarYear,11,1),(WeekStart=\"יום ב\")+1)+15","v":"2018-11-11"},"2018-11-12","2018-11-13","2018-11-14","2018-11-15","2018-11-16","2018-11-17"]
[null,null,{"$f":"IF(WEEKDAY(CalendarDay)=WeekStartValue,CONCATENATE(\"שבוע \",WEEKNUM(CalendarDay),\"/יום \",CalendarDay-DATE(YEAR(CalendarDay),1,0)),CONCATENATE(\"יום \",CalendarDay-DATE(YEAR(CalendarDay),1,0)))","v":"שבוע 46/יום 315"},{"$f":"IF(WEEKDAY(CalendarDay)=WeekStartValue,CONCATENATE(\"שבוע \",WEEKNUM(CalendarDay),\"/יום \",CalendarDay-DATE(YEAR(CalendarDay),1,0)),CONCATENATE(\"יום \",CalendarDay-DATE(YEAR(CalendarDay),1,0)))","v":"יום 316"},{"$f":"IF(WEEKDAY(CalendarDay)=WeekStartValue,CONCATENATE(\"שבוע \",WEEKNUM(CalendarDay),\"/יום \",CalendarDay-DATE(YEAR(CalendarDay),1,0)),CONCATENATE(\"יום \",CalendarDay-DATE(YEAR(CalendarDay),1,0)))","v":"יום 317"},{"$f":"IF(WEEKDAY(CalendarDay)=WeekStartValue,CONCATENATE(\"שבוע \",WEEKNUM(CalendarDay),\"/יום \",CalendarDay-DATE(YEAR(CalendarDay),1,0)),CONCATENATE(\"יום \",CalendarDay-DATE(YEAR(CalendarDay),1,0)))","v":"יום 318"},{"$f":"IF(WEEKDAY(CalendarDay)=WeekStartValue,CONCATENATE(\"שבוע \",WEEKNUM(CalendarDay),\"/יום \",CalendarDay-DATE(YEAR(CalendarDay),1,0)),CONCATENATE(\"יום \",CalendarDay-DATE(YEAR(CalendarDay),1,0)))","v":"יום 319"},{"$f":"IF(WEEKDAY(CalendarDay)=WeekStartValue,CONCATENATE(\"שבוע \",WEEKNUM(CalendarDay),\"/יום \",CalendarDay-DATE(YEAR(CalendarDay),1,0)),CONCATENATE(\"יום \",CalendarDay-DATE(YEAR(CalendarDay),1,0)))","v":"יום 320"},{"$f":"IF(WEEKDAY(CalendarDay)=WeekStartValue,CONCATENATE(\"שבוע \",WEEKNUM(CalendarDay),\"/יום \",CalendarDay-DATE(YEAR(CalendarDay),1,0)),CONCATENATE(\"יום \",CalendarDay-DATE(YEAR(CalendarDay),1,0)))","v":"יום 321"}]
[]
[null,null,{"$f":"DaysAndWeeks+DATE(CalendarYear,11,1)-WEEKDAY(DATE(CalendarYear,11,1),(WeekStart=\"יום ב\")+1)+22","v":"2018-11-18"},"2018-11-19","2018-11-20","2018-11-21","2018-11-22","2018-11-23","2018-11-24"]
[null,null,{"$f":"IF(WEEKDAY(CalendarDay)=WeekStartValue,CONCATENATE(\"שבוע \",WEEKNUM(CalendarDay),\"/יום \",CalendarDay-DATE(YEAR(CalendarDay),1,0)),CONCATENATE(\"יום \",CalendarDay-DATE(YEAR(CalendarDay),1,0)))","v":"שבוע 47/יום 322"},{"$f":"IF(WEEKDAY(CalendarDay)=WeekStartValue,CONCATENATE(\"שבוע \",WEEKNUM(CalendarDay),\"/יום \",CalendarDay-DATE(YEAR(CalendarDay),1,0)),CONCATENATE(\"יום \",CalendarDay-DATE(YEAR(CalendarDay),1,0)))","v":"יום 323"},{"$f":"IF(WEEKDAY(CalendarDay)=WeekStartValue,CONCATENATE(\"שבוע \",WEEKNUM(CalendarDay),\"/יום \",CalendarDay-DATE(YEAR(CalendarDay),1,0)),CONCATENATE(\"יום \",CalendarDay-DATE(YEAR(CalendarDay),1,0)))","v":"יום 324"},{"$f":"IF(WEEKDAY(CalendarDay)=WeekStartValue,CONCATENATE(\"שבוע \",WEEKNUM(CalendarDay),\"/יום \",CalendarDay-DATE(YEAR(CalendarDay),1,0)),CONCATENATE(\"יום \",CalendarDay-DATE(YEAR(CalendarDay),1,0)))","v":"יום 325"},{"$f":"IF(WEEKDAY(CalendarDay)=WeekStartValue,CONCATENATE(\"שבוע \",WEEKNUM(CalendarDay),\"/יום \",CalendarDay-DATE(YEAR(CalendarDay),1,0)),CONCATENATE(\"יום \",CalendarDay-DATE(YEAR(CalendarDay),1,0)))","v":"יום 326"},{"$f":"IF(WEEKDAY(CalendarDay)=WeekStartValue,CONCATENATE(\"שבוע \",WEEKNUM(CalendarDay),\"/יום \",CalendarDay-DATE(YEAR(CalendarDay),1,0)),CONCATENATE(\"יום \",CalendarDay-DATE(YEAR(CalendarDay),1,0)))","v":"יום 327"},{"$f":"IF(WEEKDAY(CalendarDay)=WeekStartValue,CONCATENATE(\"שבוע \",WEEKNUM(CalendarDay),\"/יום \",CalendarDay-DATE(YEAR(CalendarDay),1,0)),CONCATENATE(\"יום \",CalendarDay-DATE(YEAR(CalendarDay),1,0)))","v":"יום 328"}]
[]
[null,null,{"$f":"DaysAndWeeks+DATE(CalendarYear,11,1)-WEEKDAY(DATE(CalendarYear,11,1),(WeekStart=\"יום ב\")+1)+29","v":"2018-11-25"},"2018-11-26","2018-11-27","2018-11-28","2018-11-29","2018-11-30","2018-12-01"]
[null,null,{"$f":"IF(WEEKDAY(CalendarDay)=WeekStartValue,CONCATENATE(\"שבוע \",WEEKNUM(CalendarDay),\"/יום \",CalendarDay-DATE(YEAR(CalendarDay),1,0)),CONCATENATE(\"יום \",CalendarDay-DATE(YEAR(CalendarDay),1,0)))","v":"שבוע 48/יום 329"},{"$f":"IF(WEEKDAY(CalendarDay)=WeekStartValue,CONCATENATE(\"שבוע \",WEEKNUM(CalendarDay),\"/יום \",CalendarDay-DATE(YEAR(CalendarDay),1,0)),CONCATENATE(\"יום \",CalendarDay-DATE(YEAR(CalendarDay),1,0)))","v":"יום 330"},{"$f":"IF(WEEKDAY(CalendarDay)=WeekStartValue,CONCATENATE(\"שבוע \",WEEKNUM(CalendarDay),\"/יום \",CalendarDay-DATE(YEAR(CalendarDay),1,0)),CONCATENATE(\"יום \",CalendarDay-DATE(YEAR(CalendarDay),1,0)))","v":"יום 331"},{"$f":"IF(WEEKDAY(CalendarDay)=WeekStartValue,CONCATENATE(\"שבוע \",WEEKNUM(CalendarDay),\"/יום \",CalendarDay-DATE(YEAR(CalendarDay),1,0)),CONCATENATE(\"יום \",CalendarDay-DATE(YEAR(CalendarDay),1,0)))","v":"יום 332"},{"$f":"IF(WEEKDAY(CalendarDay)=WeekStartValue,CONCATENATE(\"שבוע \",WEEKNUM(CalendarDay),\"/יום \",CalendarDay-DATE(YEAR(CalendarDay),1,0)),CONCATENATE(\"יום \",CalendarDay-DATE(YEAR(CalendarDay),1,0)))","v":"יום 333"},{"$f":"IF(WEEKDAY(CalendarDay)=WeekStartValue,CONCATENATE(\"שבוע \",WEEKNUM(CalendarDay),\"/יום \",CalendarDay-DATE(YEAR(CalendarDay),1,0)),CONCATENATE(\"יום \",CalendarDay-DATE(YEAR(CalendarDay),1,0)))","v":"יום 334"},{"$f":"IF(WEEKDAY(CalendarDay)=WeekStartValue,CONCATENATE(\"שבוע \",WEEKNUM(CalendarDay),\"/יום \",CalendarDay-DATE(YEAR(CalendarDay),1,0)),CONCATENATE(\"יום \",CalendarDay-DATE(YEAR(CalendarDay),1,0)))","v":"יום 335"}]
[{"$nulls":4},"הערות"]
[]
[null,null,{"$f":"DaysAndWeeks+DATE(CalendarYear,11,1)-WEEKDAY(DATE(CalendarYear,11,1),(WeekStart=\"יום ב\")+1)+36","v":"2018-12-02"},"2018-12-03"]
[null,null,{"$f":"IF(WEEKDAY(CalendarDay)=WeekStartValue,CONCATENATE(\"שבוע \",WEEKNUM(CalendarDay),\"/יום \",CalendarDay-DATE(YEAR(CalendarDay),1,0)),CONCATENATE(\"יום \",CalendarDay-DATE(YEAR(CalendarDay),1,0)))","v":"שבוע 49/יום 336"},{"$f":"IF(WEEKDAY(CalendarDay)=WeekStartValue,CONCATENATE(\"שבוע \",WEEKNUM(CalendarDay),\"/יום \",CalendarDay-DATE(YEAR(CalendarDay),1,0)),CONCATENATE(\"יום \",CalendarDay-DATE(YEAR(CalendarDay),1,0)))","v":"יום 337"}]

{"sheet":"דצמ","index":11,"n_rows":20,"n_cols":9,"rows_kept":20,"merged":[[16,2,17,2],[17,4,19,8]]}
[null,"דצמ",{"$f":"UPPER(TEXT(WeekStart,\"ddd\"))","v":"יום א"},{"$f":"UPPER(TEXT(D3,\"aaa\"))","v":"יום ב"},"יום ג","יום ד","יום ה","יום ו","שבת"]
[null,{"$f":"CalendarYear","v":2018}]
[null,null,{"$f":"DaysAndWeeks+DATE(CalendarYear,12,1)-WEEKDAY(DATE(CalendarYear,12,1),(WeekStart=\"יום ב\")+1)+1","v":"2018-11-25"},"2018-11-26","2018-11-27","2018-11-28","2018-11-29","2018-11-30","2018-12-01"]
[null,null,{"$f":"IF(DAY(CalendarDay)=1,CONCATENATE(\"שבוע \",WEEKNUM(CalendarDay),\"/יום \",CalendarDay-DATE(YEAR(CalendarDay),1,0)),CONCATENATE(\"יום \",CalendarDay-DATE(YEAR(CalendarDay),1,0)))","v":"יום 329"},"יום 330","יום 331","יום 332","יום 333","יום 334","שבוע 48/יום 335"]
[]
[null,null,{"$f":"DaysAndWeeks+DATE(CalendarYear,12,1)-WEEKDAY(DATE(CalendarYear,12,1),(WeekStart=\"יום ב\")+1)+8","v":"2018-12-02"},"2018-12-03","2018-12-04","2018-12-05","2018-12-06","2018-12-07","2018-12-08"]
[null,null,{"$f":"IF(WEEKDAY(CalendarDay)=WeekStartValue,CONCATENATE(\"שבוע \",WEEKNUM(CalendarDay),\"/יום \",CalendarDay-DATE(YEAR(CalendarDay),1,0)),CONCATENATE(\"יום \",CalendarDay-DATE(YEAR(CalendarDay),1,0)))","v":"שבוע 49/יום 336"},{"$f":"IF(WEEKDAY(CalendarDay)=WeekStartValue,CONCATENATE(\"שבוע \",WEEKNUM(CalendarDay),\"/יום \",CalendarDay-DATE(YEAR(CalendarDay),1,0)),CONCATENATE(\"יום \",CalendarDay-DATE(YEAR(CalendarDay),1,0)))","v":"יום 337"},{"$f":"IF(WEEKDAY(CalendarDay)=WeekStartValue,CONCATENATE(\"שבוע \",WEEKNUM(CalendarDay),\"/יום \",CalendarDay-DATE(YEAR(CalendarDay),1,0)),CONCATENATE(\"יום \",CalendarDay-DATE(YEAR(CalendarDay),1,0)))","v":"יום 338"},{"$f":"IF(WEEKDAY(CalendarDay)=WeekStartValue,CONCATENATE(\"שבוע \",WEEKNUM(CalendarDay),\"/יום \",CalendarDay-DATE(YEAR(CalendarDay),1,0)),CONCATENATE(\"יום \",CalendarDay-DATE(YEAR(CalendarDay),1,0)))","v":"יום 339"},{"$f":"IF(WEEKDAY(CalendarDay)=WeekStartValue,CONCATENATE(\"שבוע \",WEEKNUM(CalendarDay),\"/יום \",CalendarDay-DATE(YEAR(CalendarDay),1,0)),CONCATENATE(\"יום \",CalendarDay-DATE(YEAR(CalendarDay),1,0)))","v":"יום 340"},{"$f":"IF(WEEKDAY(CalendarDay)=WeekStartValue,CONCATENATE(\"שבוע \",WEEKNUM(CalendarDay),\"/יום \",CalendarDay-DATE(YEAR(CalendarDay),1,0)),CONCATENATE(\"יום \",CalendarDay-DATE(YEAR(CalendarDay),1,0)))","v":"יום 341"},{"$f":"IF(WEEKDAY(CalendarDay)=WeekStartValue,CONCATENATE(\"שבוע \",WEEKNUM(CalendarDay),\"/יום \",CalendarDay-DATE(YEAR(CalendarDay),1,0)),CONCATENATE(\"יום \",CalendarDay-DATE(YEAR(CalendarDay),1,0)))","v":"יום 342"}]
[]
[null,null,{"$f":"DaysAndWeeks+DATE(CalendarYear,12,1)-WEEKDAY(DATE(CalendarYear,12,1),(WeekStart=\"יום ב\")+1)+15","v":"2018-12-09"},"2018-12-10","2018-12-11","2018-12-12","2018-12-13","2018-12-14","2018-12-15"]
[null,null,{"$f":"IF(WEEKDAY(CalendarDay)=WeekStartValue,CONCATENATE(\"שבוע \",WEEKNUM(CalendarDay),\"/יום \",CalendarDay-DATE(YEAR(CalendarDay),1,0)),CONCATENATE(\"יום \",CalendarDay-DATE(YEAR(CalendarDay),1,0)))","v":"שבוע 50/יום 343"},{"$f":"IF(WEEKDAY(CalendarDay)=WeekStartValue,CONCATENATE(\"שבוע \",WEEKNUM(CalendarDay),\"/יום \",CalendarDay-DATE(YEAR(CalendarDay),1,0)),CONCATENATE(\"יום \",CalendarDay-DATE(YEAR(CalendarDay),1,0)))","v":"יום 344"},{"$f":"IF(WEEKDAY(CalendarDay)=WeekStartValue,CONCATENATE(\"שבוע \",WEEKNUM(CalendarDay),\"/יום \",CalendarDay-DATE(YEAR(CalendarDay),1,0)),CONCATENATE(\"יום \",CalendarDay-DATE(YEAR(CalendarDay),1,0)))","v":"יום 345"},{"$f":"IF(WEEKDAY(CalendarDay)=WeekStartValue,CONCATENATE(\"שבוע \",WEEKNUM(CalendarDay),\"/יום \",CalendarDay-DATE(YEAR(CalendarDay),1,0)),CONCATENATE(\"יום \",CalendarDay-DATE(YEAR(CalendarDay),1,0)))","v":"יום 346"},{"$f":"IF(WEEKDAY(CalendarDay)=WeekStartValue,CONCATENATE(\"שבוע \",WEEKNUM(CalendarDay),\"/יום \",CalendarDay-DATE(YEAR(CalendarDay),1,0)),CONCATENATE(\"יום \",CalendarDay-DATE(YEAR(CalendarDay),1,0)))","v":"יום 347"},{"$f":"IF(WEEKDAY(CalendarDay)=WeekStartValue,CONCATENATE(\"שבוע \",WEEKNUM(CalendarDay),\"/יום \",CalendarDay-DATE(YEAR(CalendarDay),1,0)),CONCATENATE(\"יום \",CalendarDay-DATE(YEAR(CalendarDay),1,0)))","v":"יום 348"},{"$f":"IF(WEEKDAY(CalendarDay)=WeekStartValue,CONCATENATE(\"שבוע \",WEEKNUM(CalendarDay),\"/יום \",CalendarDay-DATE(YEAR(CalendarDay),1,0)),CONCATENATE(\"יום \",CalendarDay-DATE(YEAR(CalendarDay),1,0)))","v":"יום 349"}]
[]
[null,null,{"$f":"DaysAndWeeks+DATE(CalendarYear,12,1)-WEEKDAY(DATE(CalendarYear,12,1),(WeekStart=\"יום ב\")+1)+22","v":"2018-12-16"},"2018-12-17","2018-12-18","2018-12-19","2018-12-20","2018-12-21","2018-12-22"]
[null,null,{"$f":"IF(WEEKDAY(CalendarDay)=WeekStartValue,CONCATENATE(\"שבוע \",WEEKNUM(CalendarDay),\"/יום \",CalendarDay-DATE(YEAR(CalendarDay),1,0)),CONCATENATE(\"יום \",CalendarDay-DATE(YEAR(CalendarDay),1,0)))","v":"שבוע 51/יום 350"},{"$f":"IF(WEEKDAY(CalendarDay)=WeekStartValue,CONCATENATE(\"שבוע \",WEEKNUM(CalendarDay),\"/יום \",CalendarDay-DATE(YEAR(CalendarDay),1,0)),CONCATENATE(\"יום \",CalendarDay-DATE(YEAR(CalendarDay),1,0)))","v":"יום 351"},{"$f":"IF(WEEKDAY(CalendarDay)=WeekStartValue,CONCATENATE(\"שבוע \",WEEKNUM(CalendarDay),\"/יום \",CalendarDay-DATE(YEAR(CalendarDay),1,0)),CONCATENATE(\"יום \",CalendarDay-DATE(YEAR(CalendarDay),1,0)))","v":"יום 352"},{"$f":"IF(WEEKDAY(CalendarDay)=WeekStartValue,CONCATENATE(\"שבוע \",WEEKNUM(CalendarDay),\"/יום \",CalendarDay-DATE(YEAR(CalendarDay),1,0)),CONCATENATE(\"יום \",CalendarDay-DATE(YEAR(CalendarDay),1,0)))","v":"יום 353"},{"$f":"IF(WEEKDAY(CalendarDay)=WeekStartValue,CONCATENATE(\"שבוע \",WEEKNUM(CalendarDay),\"/יום \",CalendarDay-DATE(YEAR(CalendarDay),1,0)),CONCATENATE(\"יום \",CalendarDay-DATE(YEAR(CalendarDay),1,0)))","v":"יום 354"},{"$f":"IF(WEEKDAY(CalendarDay)=WeekStartValue,CONCATENATE(\"שבוע \",WEEKNUM(CalendarDay),\"/יום \",CalendarDay-DATE(YEAR(CalendarDay),1,0)),CONCATENATE(\"יום \",CalendarDay-DATE(YEAR(CalendarDay),1,0)))","v":"יום 355"},{"$f":"IF(WEEKDAY(CalendarDay)=WeekStartValue,CONCATENATE(\"שבוע \",WEEKNUM(CalendarDay),\"/יום \",CalendarDay-DATE(YEAR(CalendarDay),1,0)),CONCATENATE(\"יום \",CalendarDay-DATE(YEAR(CalendarDay),1,0)))","v":"יום 356"}]
[]
[null,null,{"$f":"DaysAndWeeks+DATE(CalendarYear,12,1)-WEEKDAY(DATE(CalendarYear,12,1),(WeekStart=\"יום ב\")+1)+29","v":"2018-12-23"},"2018-12-24","2018-12-25","2018-12-26","2018-12-27","2018-12-28","2018-12-29"]
[null,null,{"$f":"IF(WEEKDAY(CalendarDay)=WeekStartValue,CONCATENATE(\"שבוע \",WEEKNUM(CalendarDay),\"/יום \",CalendarDay-DATE(YEAR(CalendarDay),1,0)),CONCATENATE(\"יום \",CalendarDay-DATE(YEAR(CalendarDay),1,0)))","v":"שבוע 52/יום 357"},{"$f":"IF(WEEKDAY(CalendarDay)=WeekStartValue,CONCATENATE(\"שבוע \",WEEKNUM(CalendarDay),\"/יום \",CalendarDay-DATE(YEAR(CalendarDay),1,0)),CONCATENATE(\"יום \",CalendarDay-DATE(YEAR(CalendarDay),1,0)))","v":"יום 358"},{"$f":"IF(WEEKDAY(CalendarDay)=WeekStartValue,CONCATENATE(\"שבוע \",WEEKNUM(CalendarDay),\"/יום \",CalendarDay-DATE(YEAR(CalendarDay),1,0)),CONCATENATE(\"יום \",CalendarDay-DATE(YEAR(CalendarDay),1,0)))","v":"יום 359"},{"$f":"IF(WEEKDAY(CalendarDay)=WeekStartValue,CONCATENATE(\"שבוע \",WEEKNUM(CalendarDay),\"/יום \",CalendarDay-DATE(YEAR(CalendarDay),1,0)),CONCATENATE(\"יום \",CalendarDay-DATE(YEAR(CalendarDay),1,0)))","v":"יום 360"},{"$f":"IF(WEEKDAY(CalendarDay)=WeekStartValue,CONCATENATE(\"שבוע \",WEEKNUM(CalendarDay),\"/יום \",CalendarDay-DATE(YEAR(CalendarDay),1,0)),CONCATENATE(\"יום \",CalendarDay-DATE(YEAR(CalendarDay),1,0)))","v":"יום 361"},{"$f":"IF(WEEKDAY(CalendarDay)=WeekStartValue,CONCATENATE(\"שבוע \",WEEKNUM(CalendarDay),\"/יום \",CalendarDay-DATE(YEAR(CalendarDay),1,0)),CONCATENATE(\"יום \",CalendarDay-DATE(YEAR(CalendarDay),1,0)))","v":"יום 362"},{"$f":"IF(WEEKDAY(CalendarDay)=WeekStartValue,CONCATENATE(\"שבוע \",WEEKNUM(CalendarDay),\"/יום \",CalendarDay-DATE(YEAR(CalendarDay),1,0)),CONCATENATE(\"יום \",CalendarDay-DATE(YEAR(CalendarDay),1,0)))","v":"יום 363"}]
[{"$nulls":4},"הערות"]
[]
[null,null,{"$f":"DaysAndWeeks+DATE(CalendarYear,12,1)-WEEKDAY(DATE(CalendarYear,12,1),(WeekStart=\"יום ב\")+1)+36","v":"2018-12-30"},"2018-12-31"]
[null,null,{"$f":"IF(WEEKDAY(CalendarDay)=WeekStartValue,CONCATENATE(\"שבוע \",WEEKNUM(CalendarDay),\"/יום \",CalendarDay-DATE(YEAR(CalendarDay),1,0)),CONCATENATE(\"יום \",CalendarDay-DATE(YEAR(CalendarDay),1,0)))","v":"שבוע 53/יום 364"},{"$f":"IF(WEEKDAY(CalendarDay)=WeekStartValue,CONCATENATE(\"שבוע \",WEEKNUM(CalendarDay),\"/יום \",CalendarDay-DATE(YEAR(CalendarDay),1,0)),CONCATENATE(\"יום \",CalendarDay-DATE(YEAR(CalendarDay),1,0)))","v":"יום 365"}]